{"text_format":"1","workbook":"xlsx","n_sheets":12,"sheets":["Forside","Visning resultatopgørelse","Indtastning resultatopgørelse","Visning balance","Indtastning balance","Pengestrømsopgørelse","Øvrige","Gældsdata - stat-kommune-bank","Gældsdata - realkredit","Gældsdata - afledte fin. instr.","Dataark","Stamdata"],"not_rendered":{"charts":0,"images":0,"macros":1,"external_links":3,"defined_names":135,"comments":1,"pivot_tables":0},"unopened":[],"bounds":{"document_bytes":16777216,"sheet_cells":100000,"rows_first":2000,"rows_last":500,"rows_between":2000,"halvings":0,"cell_chars":16384,"cell_head_chars":4096},"cells_cut":0,"cells_raw":0,"read":"whole","date_system":"1900"}

{"sheet":"Forside","index":0,"n_rows":4,"n_cols":3,"rows_kept":4,"cut":false,"hidden":false,"merged":[]}
["Institutionsnummer",null,"Blank"]
["Institustionsnavn",null,{"$f":"VLOOKUP($C$1,Tabel38[#All],2,FALSE)","v":"Intet institutionsnavn"}]
[]
["Regnskabsår",null,2023]

{"sheet":"Visning resultatopgørelse","index":1,"n_rows":26,"n_cols":4,"rows_kept":26,"cut":false,"hidden":false,"merged":[]}
["Regnskab 2023"]
[]
["t.kr.","Note",2023,2022]
[]
["Statstilskud",1,{"$f":"ABS('Indtastning resultatopgørelse'!C16)/1000","v":0},{"$f":"ABS('Indtastning resultatopgørelse'!D16)/1000","v":0}]
["Øvrige tilskud",2,{"$f":"ABS('Indtastning resultatopgørelse'!C25)/1000","v":0},{"$f":"ABS('Indtastning resultatopgørelse'!D25)/1000","v":0}]
["Salg af varer og tjenesteydelser",3,{"$f":"ABS('Indtastning resultatopgørelse'!C31)/1000","v":0},{"$f":"ABS('Indtastning resultatopgørelse'!D31)/1000","v":0}]
["Andre indtægter",4,{"$f":"ABS('Indtastning resultatopgørelse'!C39)/1000","v":0},{"$f":"ABS('Indtastning resultatopgørelse'!D39)/1000","v":0}]
["Driftsindtægter i alt",null,{"$f":"SUM(C5:C8)","v":0},{"$f":"SUM(D5:D8)","v":0}]
[null,5]
["Personaleomk."," ",{"$f":"ABS('Indtastning resultatopgørelse'!C41)/1000","v":0},{"$f":"ABS('Indtastning resultatopgørelse'!D41)/1000","v":0}]
["Husleje"," ",{"$f":"ABS('Indtastning resultatopgørelse'!C42)/1000","v":0},{"$f":"ABS('Indtastning resultatopgørelse'!D42)/1000","v":0}]
["Af- og nedskrivninger"," ",{"$f":"ABS('Indtastning resultatopgørelse'!C43)/1000","v":0},{"$f":"ABS('Indtastning resultatopgørelse'!D43)/1000","v":0}]
["Tab ved salg af bygninger samt nedskrivning på bygninger til salg"," ",{"$f":"ABS('Indtastning resultatopgørelse'!C44)/1000","v":0},{"$f":"ABS('Indtastning resultatopgørelse'!D44)/1000","v":0}]
["Øvrige driftsomkostninger",null,{"$f":"ABS('Indtastning resultatopgørelse'!C45)/1000","v":0},{"$f":"ABS('Indtastning resultatopgørelse'!D45)/1000","v":0}]
["Driftsomkostninger i alt ",null,{"$f":"SUM(C11:C15)","v":0},{"$f":"SUM(D11:D15)","v":0}]
[]
["Resultat før finansielle poster og ekstraordinære poster",null,{"$f":"C9-C16","v":0},{"$f":"D9-D16","v":0}]
[]
["Finansielle indtægter",6,{"$f":"ABS('Indtastning resultatopgørelse'!C50)/1000","v":0},{"$f":"ABS('Indtastning resultatopgørelse'!D50)/1000","v":0}]
["Finansielle omkostninger",6,{"$f":"ABS('Indtastning resultatopgørelse'!C54)/1000","v":0},{"$f":"ABS('Indtastning resultatopgørelse'!D54)/1000","v":0}]
["Resultat før ekstraordinære poster",null,{"$f":"+C18-SUM(C20:C21)","v":0},{"$f":"+D18-SUM(D20:D21)","v":0}]
[]
["Ekstraordinære indtægter",7,{"$f":"ABS('Indtastning resultatopgørelse'!C57)/1000","v":0},{"$f":"ABS('Indtastning resultatopgørelse'!D57)/1000","v":0}]
["Ekstraordinære omkostninger",7,{"$f":"ABS('Indtastning resultatopgørelse'!C58)/1000","v":0},{"$f":"ABS('Indtastning resultatopgørelse'!D58)/1000","v":0}]
["Årets resultat",null,{"$f":"+C22-SUM(C24:C25)","v":0},{"$f":"+D22-SUM(D24:D25)","v":0}]

{"sheet":"Indtastning resultatopgørelse","index":2,"n_rows":60,"n_cols":4,"rows_kept":60,"cut":false,"hidden":false,"merged":[]}
["Institutionsnr.",{"$f":"Forside!$C$1","v":"Blank"}]
["År",2023]
[]
["Valuta","DKK"]
[]
[null,null,"2023","2022"]
["10","Statstilskud"]
["20","Uddannelsestilskud, heltidsuddannelse"]
["30","Uddannelsestilskud, deltidsuddannelse/Åben uddannelse"]
["40","Uddannelsestilskud fra BUVM"]
["50","Tilskud til øvrige formål"]
["60","Tilskud til forskning og udvikling"]
["70","Tilskud til Forskningsbaseret Myndighedsbetjening"]
["80","Tilskud til kostafdeling"]
["90","Særlige tilskud"]
["100","I alt",{"$f":"SUM(C8:C15)","v":0},{"$f":"SUM(D8:D15)","v":0}]
["110","Øvrige tilskud"]
["120","Tilskud til forskning fra offentlige danske kilder m.v."]
["130","Tilskud til forskning fra private danske kilder m.v."]
["140","Tilskud til forskning fra EU"]
["150","Tilskud til forskning fra udenlandske kilder m.v."]
["160","Andre tilskudsfinansierede aktiviteter"]
["165","Periodiserede donationer"]
["170","Ekstern rekvirentbetaling"]
["180","I alt",{"$f":"SUM(C18:C24)","v":0},{"$f":"SUM(D18:D24)","v":0}]
["190","Salg af varer og tjenesteydelser"]
["200","Kursusvirksomhed (Indtægtsdækket virksomhed)"]
["210","Retsmedicinske ydelser"]
["220","Administrative fællesskaber, værtsinstitution"]
["230","Øvrigt salg af varer og tjenesteydelser"]
["240","I alt",{"$f":"SUM(C27:C30)","v":0},{"$f":"SUM(D27:D30)","v":0}]
["250","Andre indtægter"]
["260","Deltagerbetaling, heltidsuddannelse"]
["270","Deltagerbetaling deltidsuddannelse/Åben uddannelse"]
["280","Udlejning af lokaler og udstyr"]
["290","Salg af bygninger, grunde og materialle anlæg"]
["310","Kostafdelinger og kollegier"]
["320","Øvrige indtægter"]
["330","I alt",{"$f":"SUM(C33:C38)","v":0},{"$f":"SUM(D33:D38)","v":0}]
["340","Artsopdelte driftsomkostninger"]
["350","Personaleomkostninger"]
["360","Husleje"]
["370","Af- og Nedskrivninger"]
["380","Tab ved salg af bygninger, og grunde og materielle anlæg samt nedskr. på bygning"]
["390","Øvrige driftsomkostninger"]
["400","I alt",{"$f":"SUM(C41:C45)","v":0},{"$f":"SUM(D41:D45)","v":0}]
["410","Finansielle indtægter"]
["420","Renteindtægter og andre finansielle indtægter"]
["430","kursgevinster på værdipapirer"]
["440","Finansielle indtægter i alt",{"$f":"SUM(C48:C49)","v":0},{"$f":"SUM(D48:D49)","v":0}]
["450","Finansielle omkostninger"]
["460","Renteomkostninger og andre finansielle omkostninger"]
["470","Kurstab på værdipapirer"]
["480","Finansielle omkostninger i alt",{"$f":"SUM(C51:C53)","v":0},{"$f":"SUM(D51:D53)","v":0}]
["490","Resultat af finansielle poster i alt",{"$f":"C50+C54","v":0},{"$f":"D50+D54","v":0}]
["500","Ekstraordinære poster"]
["510","Ekstraordinære indtægter, specifikation"]
["520","Ekstraordinære omkostninger, specifikation"]
["530","Resultat af ekstraordinære poster i alt",{"$f":"SUM(C57:C58)","v":0},{"$f":"SUM(D57:D58)","v":0}]
[" "]

{"sheet":"Visning balance","index":3,"n_rows":100,"n_cols":4,"rows_kept":100,"cut":false,"hidden":false,"merged":[]}
["Regnskab 2023"]
["Balance pr. 31. december"]
[]
["t.kr.","Note",2023,2022]
[]
["Immaterielle anlægsaktiver",15]
["Erhvervede koncessesioner, patenter, licenser software m.v.",null,{"$f":"'Indtastning balance'!C9/1000","v":0},{"$f":"'Indtastning balance'!D9/1000","v":0}]
["Færdiggjorte udviklingsprojekter",null,{"$f":"'Indtastning balance'!C10/1000","v":0},{"$f":"'Indtastning balance'!D10/1000","v":0}]
["Immaterielle udviklingsprojekter under udførelse",null,{"$f":"'Indtastning balance'!C11/1000","v":0},{"$f":"'Indtastning balance'!D11/1000","v":0}]
["Immaterielle anlægsaktiver i alt",null,{"$f":"SUM(C7:C9)","v":0},{"$f":"SUM(D7:D9)","v":0}]
[]
["Materielle anlægsaktiver",16]
["Grunde og bygninger"," ",{"$f":"'Indtastning balance'!C14/1000","v":0},{"$f":"'Indtastning balance'!D14/1000","v":0}]
["Igangv. Arbejde for egen regning"," ",{"$f":"'Indtastning balance'!C15/1000","v":0},{"$f":"'Indtastning balance'!D15/1000","v":0}]
["Installationer",null,{"$f":"'Indtastning balance'!C16/1000","v":0},{"$f":"'Indtastning balance'!D16/1000","v":0}]
["Indretning af lejede lokaler"," ",{"$f":"'Indtastning balance'!C17/1000","v":0},{"$f":"'Indtastning balance'!D17/1000","v":0}]
["Produktionsanlæg, maskiner og udstyr"," ",{"$f":"'Indtastning balance'!C18/1000","v":0},{"$f":"'Indtastning balance'!D18/1000","v":0}]
["Transportmateriel inkl. Skibe",null,{"$f":"'Indtastning balance'!C19/1000","v":0},{"$f":"'Indtastning balance'!D19/1000","v":0}]
["IT-udstyr",null,{"$f":"'Indtastning balance'!C20/1000","v":0},{"$f":"'Indtastning balance'!D20/1000","v":0}]
["Inventar",null,{"$f":"'Indtastning balance'!C21/1000","v":0},{"$f":"'Indtastning balance'!D21/1000","v":0}]
["Materielle anlægsaktiver i alt",null,{"$f":"SUM(C13:C20)","v":0},{"$f":"SUM(D13:D20)","v":0}]
[]
["Finansielle anlægsaktiver"," "]
["Aktier/andele i pengeinstitutter",17,{"$f":"'Indtastning balance'!C24/1000","v":0},{"$f":"'Indtastning balance'!D24/1000","v":0}]
["Andelsbeviser",18,{"$f":"'Indtastning balance'!C25/1000","v":0},{"$f":"'Indtastning balance'!D25/1000","v":0}]
["Kapitalandele i datterselskaber",19,{"$f":"'Indtastning balance'!C26/1000","v":0},{"$f":"'Indtastning balance'!D26/1000","v":0}]
["Øvrige kapitalandele",20,{"$f":"'Indtastning balance'!C27/1000","v":0},{"$f":"'Indtastning balance'!D27/1000","v":0}]
["Gældsbreve fra staten",21,{"$f":"'Indtastning balance'!C28/1000","v":0},{"$f":"'Indtastning balance'!D28/1000","v":0}]
["Lån til dattervirksomhed",22,{"$f":"'Indtastning balance'!C29/1000","v":0},{"$f":"'Indtastning balance'!D29/1000","v":0}]
["Afledte finansielle instrumenter","31e",{"$f":"'Indtastning balance'!C30/1000","v":0},{"$f":"'Indtastning balance'!D30/1000","v":0}]
["Deposita",23,{"$f":"('Indtastning balance'!C31+'Indtastning balance'!C32)/1000","v":0},{"$f":"('Indtastning balance'!D31+'Indtastning balance'!D32)/1000","v":0}]
["Finansielle anlægsaktiver i alt",null,{"$f":"SUM(C24:C31)","v":0},{"$f":"SUM(D24:D31)","v":0}]
[]
["Anlægsaktiver i alt",null,{"$f":"C10+C21+C32","v":0},{"$f":"D10+D21+D32","v":0}]
[]
["Varebeholdninger"," "]
["Varebeholdninger",null,{"$f":"'Indtastning balance'!C34/1000","v":0},{"$f":"'Indtastning balance'!D34/1000","v":0}]
["Varebeholdninger i alt",null,{"$f":"SUM(C37)","v":0},{"$f":"SUM(D37)","v":0}]
[]
["Deposita",23,{"$f":"('Indtastning balance'!C36+'Indtastning balance'!C37)/1000","v":0},{"$f":"('Indtastning balance'!D36+'Indtastning balance'!D37)/1000","v":0}]
["Tilgodehavender fra salg af varer og ydelser",24,{"$f":"('Indtastning balance'!C38+'Indtastning balance'!C39+'Indtastning balance'!C40)/1000","v":0},{"$f":"('Indtastning balance'!D38+'Indtastning balance'!D39+'Indtastning balance'!D40)/1000","v":0}]
["Tilgodehavender fra igangværende tilskudsaktivitet",25,{"$f":"('Indtastning balance'!C41+'Indtastning balance'!C42)/1000","v":0},{"$f":"('Indtastning balance'!D41+'Indtastning balance'!D42)/1000","v":0}]
["Andre tilgodehavender",26,{"$f":"'Indtastning balance'!C43/1000","v":0},{"$f":"'Indtastning balance'!D43/1000","v":0}]
["Mellemregning med Uddannelses- og Forskningsministeriet"," ",{"$f":"'Indtastning balance'!C44/1000","v":0},{"$f":"'Indtastning balance'!D44/1000","v":0}]
["Mellemregning med Børne- og Undervisningsministeriet"," ",{"$f":"'Indtastning balance'!C45/1000","v":0},{"$f":"'Indtastning balance'!D45/1000","v":0}]
["Periodeafgrænsningsposter",27,{"$f":"'Indtastning balance'!C46/1000","v":0},{"$f":"'Indtastning balance'!D46/1000","v":0}]
["Tilgodehavender i alt",null,{"$f":"SUM(C40:C46)","v":0},{"$f":"SUM(D40:D46)","v":0}]
["Afledte finansielle instrumenter","31e",{"$f":"'Indtastning balance'!C49/1000","v":0},{"$f":"'Indtastning balance'!D49/1000","v":0}]
["Værdipapirer",28,{"$f":"('Indtastning balance'!C50+'Indtastning balance'!C51)/1000","v":0},{"$f":"('Indtastning balance'!D50+'Indtastning balance'!D51)/1000","v":0}]
[]
["Likvide beholdninger"," ",{"$f":"'Indtastning balance'!C53/1000","v":0},{"$f":"'Indtastning balance'!D53/1000","v":0}]
[]
["Omsætningsaktiver i alt",null,{"$f":"C38+C47+C49+C51","v":0},{"$f":"D38+D47+D49+D51","v":0}]
[]
["Aktiver i alt",null,{"$f":"C53+C34","v":0},{"$f":"D53+D34","v":0}]
[]
[]
["t.kr.","Note",2023,2022]
[]
["Egenkapital pr. oprettelsesdato",null,{"$f":"'Indtastning balance'!C55/1000","v":0},{"$f":"'Indtastning balance'!D55/1000","v":0}]
["Overført resultat",null,{"$f":"'Indtastning balance'!C56/1000","v":0},{"$f":"'Indtastning balance'!D56/1000","v":0}]
["Øvrig egenkapital",null,{"$f":"'Indtastning balance'!C57/1000","v":0},{"$f":"'Indtastning balance'!D57/1000","v":0}]
["Egenkapital i alt",null,{"$f":"SUM(C60:C62)","v":0},{"$f":"SUM(D60:D62)","v":0}]
["Hensatte forpligtelser",29,{"$f":"('Indtastning balance'!C60+'Indtastning balance'!C61+'Indtastning balance'!C62)/1000","v":0},{"$f":"('Indtastning balance'!D60+'Indtastning balance'!D61+'Indtastning balance'!D62)/1000","v":0}]
[]
["Periodiserede donationer  ",30,{"$f":"'Indtastning balance'!C65/1000","v":0},{"$f":"'Indtastning balance'!D65/1000","v":0}]
["Statsgæld   ","31a",{"$f":"'Indtastning balance'!C66/1000","v":0},{"$f":"'Indtastning balance'!D66/1000","v":0}]
["Kommunal gæld","31b",{"$f":"'Indtastning balance'!C67/1000","v":0},{"$f":"'Indtastning balance'!D67/1000","v":0}]
["Gæld til realkreditinstitutter","31c",{"$f":"'Indtastning balance'!C68/1000","v":0},{"$f":"'Indtastning balance'!D68/1000","v":0}]
["Gæld til banker","31d",{"$f":"'Indtastning balance'!C69/1000","v":0},{"$f":"'Indtastning balance'!D69/1000","v":0}]
["Afledte finansielle instrumenter  ","31e",{"$f":"'Indtastning balance'!C70/1000","v":0},{"$f":"'Indtastning balance'!D70/1000","v":0}]
["Gæld vedrørende finansiel leasing",32,{"$f":"'Indtastning balance'!C71/1000","v":0},{"$f":"'Indtastning balance'!D71/1000","v":0}]
["Skyldige indefrosne feriemidler "," ",{"$f":"'Indtastning balance'!C72/1000","v":0},{"$f":"'Indtastning balance'!D72/1000","v":0}]
["Anden langfristet gæld",33,{"$f":"'Indtastning balance'!C73/1000","v":0},{"$f":"'Indtastning balance'!D73/1000","v":0}]
["Langfristede gældsforpligtelser i alt",null,{"$f":"SUM(C66:C74)","v":0},{"$f":"SUM(D66:D74)","v":0}]
[]
["Kortfristet del af periodiserede donationer      ",30,{"$f":"'Indtastning balance'!C76/1000","v":0},{"$f":"'Indtastning balance'!D76/1000","v":0}]
["Kortfristet del af langfristet gæld til stat, kommuner, banker og re-alkreditinstitutter",34,{"$f":"SUM('Indtastning balance'!C77:C79)/1000","v":0},{"$f":"SUM('Indtastning balance'!D77:D79)/1000","v":0}]
["Bankgæld",35,{"$f":"SUM('Indtastning balance'!C80:C82)/1000","v":0},{"$f":"SUM('Indtastning balance'!D80:D82)/1000","v":0}]
["Afledte finansielle instrumenter","31e",{"$f":"'Indtastning balance'!C83/1000","v":0},{"$f":"'Indtastning balance'!D83/1000","v":0}]
["Skyldig løn         "," ",{"$f":"'Indtastning balance'!C84/1000","v":0},{"$f":"'Indtastning balance'!D84/1000","v":0}]
["Feriepengeforpligtelse          "," ",{"$f":"'Indtastning balance'!C85/1000","v":0},{"$f":"'Indtastning balance'!D85/1000","v":0}]
["Skyldige indefrosne feriemidler        "," ",{"$f":"'Indtastning balance'!C86/1000","v":0},{"$f":"'Indtastning balance'!D86/1000","v":0}]
["Forudbetalte bundne tilskud",null,{"$f":"'Indtastning balance'!C87/1000","v":0},{"$f":"'Indtastning balance'!D87/1000","v":0}]
["Mellemregning med Uddannelses- og Forskningsministeriet      "," ",{"$f":"'Indtastning balance'!C88/1000","v":0},{"$f":"'Indtastning balance'!D88/1000","v":0}]
["Mellemregning med Børne- og Undervisningsministeriet      ",null,{"$f":"'Indtastning balance'!C89/1000","v":0},{"$f":"'Indtastning balance'!D89/1000","v":0}]
["Mellemregning med Skoleskibet DANMARK       ",null,{"$f":"'Indtastning balance'!C90/1000","v":0},{"$f":"'Indtastning balance'!D90/1000","v":0}]
["Periodeafgrænsningsposter",36,{"$f":"SUM('Indtastning balance'!C91:C94)/1000","v":0},{"$f":"SUM('Indtastning balance'!D91:D94)/1000","v":0}]
["Leverandører af varer og tjenesteydelser",37,{"$f":"SUM('Indtastning balance'!C95:C96)/1000","v":0},{"$f":"SUM('Indtastning balance'!D95:D96)/1000","v":0}]
["Anden kortfristet gæld        ",38,{"$f":"'Indtastning balance'!C97/1000","v":0},{"$f":"'Indtastning balance'!D97/1000","v":0}]
["Kortfristede gældsforpligtelser i alt",null,{"$f":"SUM(C77:C90)","v":0},{"$f":"SUM(D76:D90)","v":0}]
[]
["Gældsforpligtelser i alt",null,{"$f":"C75+C91","v":0},{"$f":"D75+D91","v":0}]
["Passiver i alt",null,{"$f":"C63+C64+C93","v":0},{"$f":"D63+D64+D93","v":0}]
[]
["Andre forpligtelser",39,{"$f":"'Indtastning balance'!C92/1000","v":0},{"$f":"'Indtastning balance'!D92/1000","v":0}]
["Eventualaktiver og -forpligtelser",40,{"$f":"'Indtastning balance'!C93/1000","v":0},{"$f":"'Indtastning balance'!D93/1000","v":0}]
[]
[]
["Kontrol mellem aktiver og passiver",null,{"$f":"C55-C94","v":0},{"$f":"D55-D94","v":0}]

{"sheet":"Indtastning balance","index":4,"n_rows":100,"n_cols":4,"rows_kept":100,"cut":false,"hidden":false,"merged":[]}
["Filtre"]
["Datofilter","01.01.23 - 31.12.23"]
[]
["Valuta","DKK"]
[]
[null,null,"2023","2022"]
["1","Balance"]
["2","Immaterielle anlægsaktiver"]
["3","15 Erhvervede koncessioner, patenter, licenser, software m.v."]
["4","15 Færdiggjorte Udviklingsprojekter"]
["5","15 Immaterielle udviklingsprojekter under opførelse"]
["6","Immaterielle anlægsaktiver i alt",{"$f":"SUM(C9:C11)","v":0},{"$f":"SUM(D9:D11)","v":0}]
["7","Materielle anlægsaktiver"]
["8","16 Grunde og bygninger"]
["9","16 Igangværende arbejde for egen regning"]
["10","16 Installationer"]
["11","16 Indretning af lejede lokaler"]
["12","16 Transportmateriel inkl. skibe"]
["13","16 Produktionsanlæg, maskiner og udstyr"]
["14","16 It-udstyr"]
["15","16 Inventar"]
["16","Materielle anlægsaktiver i alt",{"$f":"SUM(C14:C21)","v":0},{"$f":"SUM(D14:D21)","v":0}]
["17","Finansielle anlægsaktiver"]
["18","17 Aktier/andele i pengeinstitutter"]
["19","18 Andelsbeviser"]
["20","19 Kapitalandele i datterselskaber"]
["21","20 Øvrige kapitalandele"]
["22","21 Gældsbreve fra staten"]
["23","22 Lån til dattervirksomheder/langfristede tilgodehavender"]
["24","31e Afledte finansielle instrumenter"]
["25","23 Deposita vedr. lejemål"]
["26","23 Øvrige deposita"]
["27","Finansielle anlægsaktiver i alt",{"$f":"SUM(C24:C32)","v":0},{"$f":"SUM(D24:D32)","v":0}]
["28","Varebeholdninger"]
["29","Tilgodehavender"]
["30","23 Deposita vedr. lejemål"]
["31","23 Øvrige deposita"]
["32","24 Tilgodehavender fra salg af varer og ydelser m.v."]
["33","24 Tilgodehavender hos dattervirksomheder"]
["34","24 Reserveret til tab på tilgodehavender fra salg af varer og ydelser m.v."]
["35","25 Tilgodehavender fra igangværende tilskudsaktivitet"]
["36","25 Hensættelser til tab på igangværende tilskudsaktivitet"]
["37","26 Andre tilgodehavender"]
["38","Mellemregning med Uddannelses- og Forskningsministeriet"]
["39","Mellemregning med Børne- og Undervisningsministeriet"]
["40","27 Periodeafgrænsningsposter"]
["41","Tilgodehavender i alt",{"$f":"SUM(C36:C46)","v":0},{"$f":"SUM(D36:D46)","v":0}]
["42","Værdipapirer"]
["43","31e Afledte finansielle instrumenter"]
["44","28 Obligationer"]
["45","28 Øvrige værdipapirer"]
["46","Værdipapirer i alt",{"$f":"SUM(C50:C51)","v":0},{"$f":"SUM(D50:D51)","v":0}]
["47","Likvide beholdninger"]
["48","Egenkapital"]
["49","Egenkapital pr. [oprettelsesdato]"]
["50","Overført resultat"]
["51","Øvrig egenkapital"]
["52","Egenkapital i alt",{"$f":"SUM(C55:C57)","v":0},{"$f":"SUM(D55:D57)","v":0}]
["53","Hensatte forpligtelser"]
["54","29 Reetablering af lejemål"]
["55","29 Lønrelaterede hensatte forpligtelser"]
["56","29 Andre hensatte forpligelser"]
["57","Hensatte forpligtelser i alt",{"$f":"SUM(C60:C62)","v":0},{"$f":"SUM(D60:D62)","v":0}]
["58","Langfristede gældsforpligtelser"]
["59","30 Periodiserede donationer"]
["60","31a Gæld til staten"]
["61","31b Gæld til kommuner og regioner"]
["62","31c Gæld til realkreditinstitutter"]
["63","31d Gæld til banker"]
["64","31e Afledte finansielle instrumenter"]
["65","32 Gæld vedrørende finansiel leasing"]
["66","Skyldige indefrosne feriemidler"]
["67","33 Anden langfristet gæld"]
["68","Langfristede gældsforpligtelser i alt",{"$f":"SUM(C65:C73)","v":0},{"$f":"SUM(D65:D73)","v":0}]
["69","Kortfristede gældsforpligtelser"]
["70","30 Kortfristet del af periodiserede donationer      "]
["71","34 Kortfristet del af langfristet statsgæld"]
["72","34 Kortfristet del af langfristet kommunal gæld"]
["73","34 Kortfristet del af gæld til banker og realkreditinstitutter"]
["74","35 Korte banklån"]
["75","35 Korte driftskreditter"]
["76","35 Træk på kassekredit"]
["77","31e Afledte finansielle instrumenter"]
["78","Skyldig løn"]
["79","Feriepengeforpligtelse"]
["80","Skyldige indefrosne feriemidler"]
["81","Forudbetalte bundne tilskud"]
["82","Mellemregning med Uddannelses- og Forskningsministeriet"]
["83","Mellemregning med Børne- og Undervisningsministeriet"]
["84","Mellemregning med Skoleskibet DANMARK"]
["85","36 Forudbetalte tilskud for det kommende regnskabsår fra Uddannelses og Forskningsministeriet"]
["86","36 Forudbetalte tilskud for det kommende regnskabsår fra Børne- og Undervisningsministeriet"]
["87","36 Periodiserede særtilskud fra Uddannelses- og Forskningsministeriet"]
["88","36  Øvrige periodeafgrænsningsposter [evt. specifikation, f.eks. forudbetalt deltagerbetaling]"]
["89","37 Gæld til leverandører af varer og tjenesteydelser"]
["90","37 Gæld til dattervirksomheder"]
["91","38 Anden kortfristet gæld"]
["92","Kortfristede gældsforpligtelser i alt",{"$f":"SUM(C76:C97)","v":0},{"$f":"SUM(D76:D97)","v":0}]
["93","39 Andre forpligtelser"]
["94","40 Eventualaktiver og -forpligtelser"]

{"sheet":"Pengestrømsopgørelse","index":5,"n_rows":40,"n_cols":3,"rows_kept":40,"cut":false,"hidden":false,"merged":[]}
[null,2023,2022]
["Årets resultat"]
[]
["Af- og nedskrivninger på anlægsaktiver "]
["Avance/tab ved afhændelse af anlægsaktiver"]
["Øvrige ikke-kontante driftsposter"]
["Tilbageførsel af poster uden likviditetseffekt",{"$f":"SUM(B4:B6)","v":0},{"$f":"SUM(C4:C6)","v":0}]
[]
["Ændring i varebeholdninger"]
["Ændring i tilgodehavender ekskl. igangværende tilskudsaktivitet"]
["Ændring i igangværende tilskudsaktivitet"]
["Ændring i hensatte forpligtelser "]
["Ændring i kortfristede gældsforpligtelser ekskl. forudbetalte bundne tilskud"]
["Ændring i forudbetalte bundne tilskud"]
["Ændringer i driftskapital",{"$f":"SUM(B9:B14)","v":0},{"$f":"SUM(C9:C14)","v":0}]
["Pengestrømme fra driftsaktivitet i alt",{"$f":"B2+B7+B15","v":0},{"$f":"C2+C7+C15","v":0}]
[]
["Køb af immaterielle anlægsaktiver"]
["Salg af immaterielle anlægsaktiver"]
["Køb af materielle anlægsaktiver"]
["Salg af materielle anlægsaktiver"]
["Køb af finansielle anlægsaktiver"]
["Salg af finansielle anlægsaktiver"]
["Ændring i deposita opført som finansielle anlægsaktiver"]
["Pengestrømme fra investeringsaktivitet i alt",{"$f":"SUM(B18:B24)","v":0},{"$f":"SUM(C18:C24)","v":0}]
[]
["Optagelse af bank- og realkreditgæld"]
["Afdrag på bank- og realkreditgæld"]
["Optagelse af gæld til staten og kommuner"]
["Afdrag på gæld til staten og kommuner"]
["Ændring i donationsforpligtelser"]
["Ændring i gæld vedr. finansiel leasing (KP)"]
["Ændring i øvrige langfristede gældsforpligtelser"]
["Ændring i lån til dattervirksomhed (DTU)"]
["Pengestrømme fra finansieringsaktivitet i alt",{"$f":"SUM(B27:B34)","v":0},{"$f":"SUM(C27:C34)","v":0}]
[]
["Årets pengestrøm",{"$f":"+B16+B25+B35","v":0},{"$f":"+C16+C25+C35","v":0}]
[]
["Likvide beholdninger inkl. værdipapirer i alt, primo"]
["Likvide beholdninger inkl. værdipapirer i alt, ultimo"]

{"sheet":"Øvrige","index":6,"n_rows":72,"n_cols":7,"rows_kept":72,"cut":false,"hidden":false,"merged":[[0,0,0,4],[6,0,6,3],[14,0,14,3],[27,0,27,5]]}
["Kontantvurdering (angives i hele kr.)"]
["Institution","Regnskabsår","Balance","Datatype","Beløb",null," "]
[{"$f":"Forside!$C$1","v":"Blank"},2023,"Anlægsnote","Kontantvurdering af bygninger og grunde ultimo",0]
[{"$f":"Forside!$C$1","v":"Blank"}]
[]
[]
["Forventninger til resultat (angives i hele kr.)"]
["Mio. kr.","B2024","B2025","B2026","Institution"]
["Indtægter",null,null,null,{"$f":"Forside!$C$1","v":"Blank"}]
["Omkostninger",null,null,null,{"$f":"Forside!$C$1","v":"Blank"}]
["Finansielle poster",null,null,null,{"$f":"Forside!$C$1","v":"Blank"}]
["Resultat",null,null,null,{"$f":"Forside!$C$1","v":"Blank"}]
[]
[]
["Formålsfordelte omkostninger (angives i hele kr."]
["Formålsfordelte omkostninger t. kr.","ÅR","ÅR-1","Institution"]
["Uddannelse",null,null,{"$f":"Forside!$C$1","v":"Blank"}]
["Forskning og udvikling",null,null,{"$f":"Forside!$C$1","v":"Blank"}]
["Formidling og videnudveksling",null,null,{"$f":"Forside!$C$1","v":"Blank"}]
["Myndighedsbetjening, rådgivning og øvrige ydelser",null,null,{"$f":"Forside!$C$1","v":"Blank"}]
["Kostafdeling og kollegier",null,null,{"$f":"Forside!$C$1","v":"Blank"}]
["Generelle fællesomkostninger",null,null,{"$f":"Forside!$C$1","v":"Blank"}]
["Bygninger og bygningsdrift",null,null,{"$f":"Forside!$C$1","v":"Blank"}]
["Driftsomkostninger i alt",null,null,{"$f":"Forside!$C$1","v":"Blank"}]
[]
[]
[]
["Særlige Specifikationer"]
["Indtægter og omkostninger på virksomhedstyper (t. kr.)","ÅR","ÅR-1","ÅR-2","ÅR-3","Institution"]
[null,null,null,null,null,{"$f":"Forside!$C$1","v":"Blank"}]
["Almindelig virksomhed",null,null,null,null,{"$f":"Forside!$C$1","v":"Blank"}]
["Indtægter",null,null,null,null,{"$f":"Forside!$C$1","v":"Blank"}]
["Omkostninger",null,null,null,null,{"$f":"Forside!$C$1","v":"Blank"}]
["Resultat",null,null,null,null,{"$f":"Forside!$C$1","v":"Blank"}]
[null,null,null,null,null,{"$f":"Forside!$C$1","v":"Blank"}]
["Tilskudsfinansieret forskningsvirksomhed",null,null,null,null,{"$f":"Forside!$C$1","v":"Blank"}]
["Indtægter",null,null,null,null,{"$f":"Forside!$C$1","v":"Blank"}]
["Omkostninger",null,null,null,null,{"$f":"Forside!$C$1","v":"Blank"}]
["Resultat",null,null,null,null,{"$f":"Forside!$C$1","v":"Blank"}]
[null,null,null,null,null,{"$f":"Forside!$C$1","v":"Blank"}]
["Andre tilskudsfinansierede aktiviteter",null,null,null,null,{"$f":"Forside!$C$1","v":"Blank"}]
["Indtægter",null,null,null,null,{"$f":"Forside!$C$1","v":"Blank"}]
["Omkostninger",null,null,null,null,{"$f":"Forside!$C$1","v":"Blank"}]
["Resultat",null,null,null,null,{"$f":"Forside!$C$1","v":"Blank"}]
[null,null,null,null,null,{"$f":"Forside!$C$1","v":"Blank"}]
["Indtægtsdækket virksomhed (IDV)",null,null,null,null,{"$f":"Forside!$C$1","v":"Blank"}]
["Indtægter",null,null,null,null,{"$f":"Forside!$C$1","v":"Blank"}]
["Omkostninger",null,null,null,null,{"$f":"Forside!$C$1","v":"Blank"}]
["Resultat",null,null,null,null,{"$f":"Forside!$C$1","v":"Blank"}]
["Akkumuleret resultat for IDV ",null,null,null,null,{"$f":"Forside!$C$1","v":"Blank"}]
[null,null,null,null,null,{"$f":"Forside!$C$1","v":"Blank"}]
["Indtægtsdækket virksomhed – IDV vedr. udbud i udlandet",null,null,null,null,{"$f":"Forside!$C$1","v":"Blank"}]
["Indtægter",null,null,null,null,{"$f":"Forside!$C$1","v":"Blank"}]
["Omkostninger",null,null,null,null,{"$f":"Forside!$C$1","v":"Blank"}]
["Resultat",null,null,null,null,{"$f":"Forside!$C$1","v":"Blank"}]
["Akkumuleret resultat for IDV i udlandet ",null,null,null,null,{"$f":"Forside!$C$1","v":"Blank"}]
[null,null,null,null,null,{"$f":"Forside!$C$1","v":"Blank"}]
["Retsmedicinske undersøgelser ",null,null,null,null,{"$f":"Forside!$C$1","v":"Blank"}]
["Indtægter",null,null,null,null,{"$f":"Forside!$C$1","v":"Blank"}]
["Omkostninger",null,null,null,null,{"$f":"Forside!$C$1","v":"Blank"}]
["Resultat",null,null,null,null,{"$f":"Forside!$C$1","v":"Blank"}]
[]
[]
[]
["Indskudte midler i fonde, hvis hovedformål er at etablere universitetsnære boliger (t. kr.)","Indskud i [ÅR]","Akkumuleret indskud","Institution"]
["Fond 1",null,null,{"$f":"Forside!$C$1","v":"Blank"}]
["Fond 2",null,null,{"$f":"Forside!$C$1","v":"Blank"}]
[]
[]
["Administrationsomkostninger til fonde og foreninger (t. kr.) ","Omkostninger i [ÅR]","Omkostninger i [ÅR-1]","Institution"]
["Fond/forening 1 ",null,null,{"$f":"Forside!$C$1","v":"Blank"}]
["Fond/forening 2",null,null,{"$f":"Forside!$C$1","v":"Blank"}]

{"sheet":"Gældsdata - stat-kommune-bank","index":7,"n_rows":51,"n_cols":14,"rows_kept":51,"cut":false,"hidden":false,"merged":[]}
["År","Institution","Instrumenttype","Lån nr.","Ejendom","Valuta","Rente (pct.)","Fast/variabel rente","Bemærkning","Afdragsfrihed","Afdragsfrihed udløb","Hovedstol","Restgæld","Udløb"]
[{"$f":"Forside!$C$4","v":2023},"Blank"]
[{"$f":"Forside!$C$4","v":2023},"Blank"]
[{"$f":"Forside!$C$4","v":2023},"Blank"]
[{"$f":"Forside!$C$4","v":2023},"Blank"]
[{"$f":"Forside!$C$4","v":2023},"Blank"]
[{"$f":"Forside!$C$4","v":2023},"Blank"]
[{"$f":"Forside!$C$4","v":2023},"Blank"]
[{"$f":"Forside!$C$4","v":2023},"Blank"]
[{"$f":"Forside!$C$4","v":2023},"Blank"]
[{"$f":"Forside!$C$4","v":2023},"Blank"]
[{"$f":"Forside!$C$4","v":2023},"Blank"]
[{"$f":"Forside!$C$4","v":2023},"Blank"]
[{"$f":"Forside!$C$4","v":2023},"Blank"]
[{"$f":"Forside!$C$4","v":2023},"Blank"]
[{"$f":"Forside!$C$4","v":2023},"Blank"]
[{"$f":"Forside!$C$4","v":2023},"Blank"]
[{"$f":"Forside!$C$4","v":2023},"Blank"]
[{"$f":"Forside!$C$4","v":2023},"Blank"]
[{"$f":"Forside!$C$4","v":2023},"Blank"]
[{"$f":"Forside!$C$4","v":2023},"Blank"]
[{"$f":"Forside!$C$4","v":2023},"Blank"]
[{"$f":"Forside!$C$4","v":2023},"Blank"]
[{"$f":"Forside!$C$4","v":2023},"Blank"]
[{"$f":"Forside!$C$4","v":2023},"Blank"]
[{"$f":"Forside!$C$4","v":2023},"Blank"]
[{"$f":"Forside!$C$4","v":2023},"Blank"]
[{"$f":"Forside!$C$4","v":2023},"Blank"]
[{"$f":"Forside!$C$4","v":2023},"Blank"]
[{"$f":"Forside!$C$4","v":2023},"Blank"]
[{"$f":"Forside!$C$4","v":2023},"Blank"]
[{"$f":"Forside!$C$4","v":2023},"Blank"]
[{"$f":"Forside!$C$4","v":2023},"Blank"]
[{"$f":"Forside!$C$4","v":2023},"Blank"]
[{"$f":"Forside!$C$4","v":2023},"Blank"]
[{"$f":"Forside!$C$4","v":2023},"Blank"]
[{"$f":"Forside!$C$4","v":2023},"Blank"]
[{"$f":"Forside!$C$4","v":2023},"Blank"]
[{"$f":"Forside!$C$4","v":2023},"Blank"]
[{"$f":"Forside!$C$4","v":2023},"Blank"]
[{"$f":"Forside!$C$4","v":2023},"Blank"]
[{"$f":"Forside!$C$4","v":2023},"Blank"]
[{"$f":"Forside!$C$4","v":2023},"Blank"]
[{"$f":"Forside!$C$4","v":2023},"Blank"]
[{"$f":"Forside!$C$4","v":2023},"Blank"]
[{"$f":"Forside!$C$4","v":2023},"Blank"]
[{"$f":"Forside!$C$4","v":2023},"Blank"]
[{"$f":"Forside!$C$4","v":2023},"Blank"]
[{"$f":"Forside!$C$4","v":2023},"Blank"]
[{"$f":"Forside!$C$4","v":2023},"Blank"]
[{"$f":"Forside!$C$4","v":2023},"Blank"]

{"sheet":"Gældsdata - realkredit","index":8,"n_rows":51,"n_cols":16,"rows_kept":51,"cut":false,"hidden":false,"merged":[]}
["År","Institution","Instrumenttype","Lån nr.","Ejendom","ISIN-kode","Valuta","Rente (pct.)","Fast/variabel rente","Bemærkning","Bidrag (pct.)","Afdragsfrihed","Afdragsfrihed udløb","Hovedstol","Restgæld","Udløb"]
[{"$f":"Forside!$C$4","v":2023},"Blank"]
[{"$f":"Forside!$C$4","v":2023},"Blank"]
[{"$f":"Forside!$C$4","v":2023},"Blank"]
[{"$f":"Forside!$C$4","v":2023},"Blank"]
[{"$f":"Forside!$C$4","v":2023},"Blank"]
[{"$f":"Forside!$C$4","v":2023},"Blank"]
[{"$f":"Forside!$C$4","v":2023},"Blank"]
[{"$f":"Forside!$C$4","v":2023},"Blank"]
[{"$f":"Forside!$C$4","v":2023},"Blank"]
[{"$f":"Forside!$C$4","v":2023},"Blank"]
[{"$f":"Forside!$C$4","v":2023},"Blank"]
[{"$f":"Forside!$C$4","v":2023},"Blank"]
[{"$f":"Forside!$C$4","v":2023},"Blank"]
[{"$f":"Forside!$C$4","v":2023},"Blank"]
[{"$f":"Forside!$C$4","v":2023},"Blank"]
[{"$f":"Forside!$C$4","v":2023},"Blank"]
[{"$f":"Forside!$C$4","v":2023},"Blank"]
[{"$f":"Forside!$C$4","v":2023},"Blank"]
[{"$f":"Forside!$C$4","v":2023},"Blank"]
[{"$f":"Forside!$C$4","v":2023},"Blank"]
[{"$f":"Forside!$C$4","v":2023},"Blank"]
[{"$f":"Forside!$C$4","v":2023},"Blank"]
[{"$f":"Forside!$C$4","v":2023},"Blank"]
[{"$f":"Forside!$C$4","v":2023},"Blank"]
[{"$f":"Forside!$C$4","v":2023},"Blank"]
[{"$f":"Forside!$C$4","v":2023},"Blank"]
[{"$f":"Forside!$C$4","v":2023},"Blank"]
[{"$f":"Forside!$C$4","v":2023},"Blank"]
[{"$f":"Forside!$C$4","v":2023},"Blank"]
[{"$f":"Forside!$C$4","v":2023},"Blank"]
[{"$f":"Forside!$C$4","v":2023},"Blank"]
[{"$f":"Forside!$C$4","v":2023},"Blank"]
[{"$f":"Forside!$C$4","v":2023},"Blank"]
[{"$f":"Forside!$C$4","v":2023},"Blank"]
[{"$f":"Forside!$C$4","v":2023},"Blank"]
[{"$f":"Forside!$C$4","v":2023},"Blank"]
[{"$f":"Forside!$C$4","v":2023},"Blank"]
[{"$f":"Forside!$C$4","v":2023},"Blank"]
[{"$f":"Forside!$C$4","v":2023},"Blank"]
[{"$f":"Forside!$C$4","v":2023},"Blank"]
[{"$f":"Forside!$C$4","v":2023},"Blank"]
[{"$f":"Forside!$C$4","v":2023},"Blank"]
[{"$f":"Forside!$C$4","v":2023},"Blank"]
[{"$f":"Forside!$C$4","v":2023},"Blank"]
[{"$f":"Forside!$C$4","v":2023},"Blank"]
[{"$f":"Forside!$C$4","v":2023},"Blank"]
[{"$f":"Forside!$C$4","v":2023},"Blank"]
[{"$f":"Forside!$C$4","v":2023},"Blank"]
[{"$f":"Forside!$C$4","v":2023},"Blank"]
[{"$f":"Forside!$C$4","v":2023},"Blank"]

{"sheet":"Gældsdata - afledte fin. instr.","index":9,"n_rows":51,"n_cols":10,"rows_kept":51,"cut":false,"hidden":false,"merged":[]}
["År","Institution","Instrumenttype","Lån nr.","Låntype","Låntypespecifikation","Løbetid","Hovedstol","Restgæld","Markedsværdi (pr. 31/12)"]
[{"$f":"Forside!$C$4","v":2023},"Blank"]
[{"$f":"Forside!$C$4","v":2023},"Blank"]
[{"$f":"Forside!$C$4","v":2023},"Blank"]
[{"$f":"Forside!$C$4","v":2023},"Blank"]
[{"$f":"Forside!$C$4","v":2023},"Blank"]
[{"$f":"Forside!$C$4","v":2023},"Blank"]
[{"$f":"Forside!$C$4","v":2023},"Blank"]
[{"$f":"Forside!$C$4","v":2023},"Blank"]
[{"$f":"Forside!$C$4","v":2023},"Blank"]
[{"$f":"Forside!$C$4","v":2023},"Blank"]
[{"$f":"Forside!$C$4","v":2023},"Blank"]
[{"$f":"Forside!$C$4","v":2023},"Blank"]
[{"$f":"Forside!$C$4","v":2023},"Blank"]
[{"$f":"Forside!$C$4","v":2023},"Blank"]
[{"$f":"Forside!$C$4","v":2023},"Blank"]
[{"$f":"Forside!$C$4","v":2023},"Blank"]
[{"$f":"Forside!$C$4","v":2023},"Blank"]
[{"$f":"Forside!$C$4","v":2023},"Blank"]
[{"$f":"Forside!$C$4","v":2023},"Blank"]
[{"$f":"Forside!$C$4","v":2023},"Blank"]
[{"$f":"Forside!$C$4","v":2023},"Blank"]
[{"$f":"Forside!$C$4","v":2023},"Blank"]
[{"$f":"Forside!$C$4","v":2023},"Blank"]
[{"$f":"Forside!$C$4","v":2023},"Blank"]
[{"$f":"Forside!$C$4","v":2023},"Blank"]
[{"$f":"Forside!$C$4","v":2023},"Blank"]
[{"$f":"Forside!$C$4","v":2023},"Blank"]
[{"$f":"Forside!$C$4","v":2023},"Blank"]
[{"$f":"Forside!$C$4","v":2023},"Blank"]
[{"$f":"Forside!$C$4","v":2023},"Blank"]
[{"$f":"Forside!$C$4","v":2023},"Blank"]
[{"$f":"Forside!$C$4","v":2023},"Blank"]
[{"$f":"Forside!$C$4","v":2023},"Blank"]
[{"$f":"Forside!$C$4","v":2023},"Blank"]
[{"$f":"Forside!$C$4","v":2023},"Blank"]
[{"$f":"Forside!$C$4","v":2023},"Blank"]
[{"$f":"Forside!$C$4","v":2023},"Blank"]
[{"$f":"Forside!$C$4","v":2023},"Blank"]
[{"$f":"Forside!$C$4","v":2023},"Blank"]
[{"$f":"Forside!$C$4","v":2023},"Blank"]
[{"$f":"Forside!$C$4","v":2023},"Blank"]
[{"$f":"Forside!$C$4","v":2023},"Blank"]
[{"$f":"Forside!$C$4","v":2023},"Blank"]
[{"$f":"Forside!$C$4","v":2023},"Blank"]
[{"$f":"Forside!$C$4","v":2023},"Blank"]
[{"$f":"Forside!$C$4","v":2023},"Blank"]
[{"$f":"Forside!$C$4","v":2023},"Blank"]
[{"$f":"Forside!$C$4","v":2023},"Blank"]
[{"$f":"Forside!$C$4","v":2023},"Blank"]
[{"$f":"Forside!$C$4","v":2023},"Blank"]

{"sheet":"Dataark","index":10,"n_rows":255,"n_cols":11,"rows_kept":255,"cut":false,"hidden":false,"merged":[]}
["Institutionsnr.","årsrapportår","Sammenligningsår","type","Posteringstype","Note","Hierarki","Notenavn","Underhierarki","Undernotenavn","Beløb"]
[{"$f":"Forside!$C$1","v":"Blank"},{"$f":"Forside!$C$4","v":2023},{"$f":"+B2","v":2023},"RES","Indtægter",1,1,"Statstilskud","1.1","Uddannelsestilskud, heltidsuddannelse",{"$f":"ABS('Indtastning resultatopgørelse'!C8)","v":0}]
[{"$f":"Forside!$C$1","v":"Blank"},{"$f":"Forside!$C$4","v":2023},{"$f":"+B3","v":2023},"RES","Indtægter",1,1,"Statstilskud","1.2","Uddannelsestilskud, deltidsuddannelse/Åben uddannelse",{"$f":"ABS('Indtastning resultatopgørelse'!C9)","v":0}]
[{"$f":"Forside!$C$1","v":"Blank"},{"$f":"Forside!$C$4","v":2023},2023,"RES","Indtægter",1,1,"Statstilskud","1.3","Uddannelsestilskud fra BUVM",{"$f":"ABS('Indtastning resultatopgørelse'!C10)","v":0}]
[{"$f":"Forside!$C$1","v":"Blank"},{"$f":"Forside!$C$4","v":2023},2023,"RES","Indtægter",1,1,"Statstilskud","1.4","Tilskud til øvrige formål",{"$f":"ABS('Indtastning resultatopgørelse'!C11)","v":0}]
[{"$f":"Forside!$C$1","v":"Blank"},{"$f":"Forside!$C$4","v":2023},2023,"RES","Indtægter",1,1,"Statstilskud","1.5","Tilskud til forskning og udvikling (Frascati)",{"$f":"ABS('Indtastning resultatopgørelse'!C12)","v":0}]
[{"$f":"Forside!$C$1","v":"Blank"},{"$f":"Forside!$C$4","v":2023},2023,"RES","Indtægter",1,1,"Statstilskud","1.6","Tilskud til Forskningsbaseret Myndighedsbetjening",{"$f":"ABS('Indtastning resultatopgørelse'!C13)","v":0}]
[{"$f":"Forside!$C$1","v":"Blank"},{"$f":"Forside!$C$4","v":2023},2023,"RES","Indtægter",1,1,"Statstilskud","1.7","Tilskud til kostafdeling",{"$f":"ABS('Indtastning resultatopgørelse'!C14)","v":0}]
[{"$f":"Forside!$C$1","v":"Blank"},{"$f":"Forside!$C$4","v":2023},2023,"RES","Indtægter",1,1,"Statstilskud","1.8","Særlige tilskud",{"$f":"ABS('Indtastning resultatopgørelse'!C15)","v":0}]
[{"$f":"Forside!$C$1","v":"Blank"},{"$f":"Forside!$C$4","v":2023},2023,"RES","Indtægter",2,2,"Øvrige tilskud","2.1","Tilskud til forskning fra offentlige danske kilder m.v.",{"$f":"ABS('Indtastning resultatopgørelse'!C18)","v":0}]
[{"$f":"Forside!$C$1","v":"Blank"},{"$f":"Forside!$C$4","v":2023},2023,"RES","Indtægter",2,2,"Øvrige tilskud","2.2","Tilskud til forskning fra private danske kilder m.v.",{"$f":"ABS('Indtastning resultatopgørelse'!C19)","v":0}]
[{"$f":"Forside!$C$1","v":"Blank"},{"$f":"Forside!$C$4","v":2023},2023,"RES","Indtægter",2,2,"Øvrige tilskud","2.3","Tilskud til forskning fra EU",{"$f":"ABS('Indtastning resultatopgørelse'!C20)","v":0}]
[{"$f":"Forside!$C$1","v":"Blank"},{"$f":"Forside!$C$4","v":2023},2023,"RES","Indtægter",2,2,"Øvrige tilskud","2.4","Tilskud til forskning fra udenlandske kilder m.v.",{"$f":"ABS('Indtastning resultatopgørelse'!C21)","v":0}]
[{"$f":"Forside!$C$1","v":"Blank"},{"$f":"Forside!$C$4","v":2023},2023,"RES","Indtægter",2,2,"Øvrige tilskud","2.5","Andre tilskudsfinansierede aktiviteter",{"$f":"ABS('Indtastning resultatopgørelse'!C22)","v":0}]
[{"$f":"Forside!$C$1","v":"Blank"},{"$f":"Forside!$C$4","v":2023},{"$f":"+B15","v":2023},"RES","Indtægter",2,2,"Øvrige tilskud","2.6","Periodiserede anlægsdonationer",{"$f":"ABS('Indtastning resultatopgørelse'!C23)","v":0}]
[{"$f":"Forside!$C$1","v":"Blank"},{"$f":"Forside!$C$4","v":2023},2023,"RES","Indtægter",2,2,"Øvrige tilskud","2.7","Ekstern rekvirentbetaling",{"$f":"ABS('Indtastning resultatopgørelse'!C24)","v":0}]
[{"$f":"Forside!$C$1","v":"Blank"},{"$f":"Forside!$C$4","v":2023},2023,"RES","Indtægter",3,3,"Salg af varer og tjenesteydelser","3.1","Kursusvirksomhed (Indtægtsdækket virksomhed)",{"$f":"ABS('Indtastning resultatopgørelse'!C27)","v":0}]
[{"$f":"Forside!$C$1","v":"Blank"},{"$f":"Forside!$C$4","v":2023},2023,"RES","Indtægter",3,3,"Salg af varer og tjenesteydelser","3.2","Retsmedicinske ydelser",{"$f":"ABS('Indtastning resultatopgørelse'!C28)","v":0}]
[{"$f":"Forside!$C$1","v":"Blank"},{"$f":"Forside!$C$4","v":2023},2023,"RES","Indtægter",3,3,"Salg af varer og tjenesteydelser","3.3.","Administrative fællesskaber, værtsinstitution",{"$f":"ABS('Indtastning resultatopgørelse'!C29)","v":0}]
[{"$f":"Forside!$C$1","v":"Blank"},{"$f":"Forside!$C$4","v":2023},2023,"RES","Indtægter",3,3,"Salg af varer og tjenesteydelser","3.4","Øvrigt salg af varer og tjenesteydelser",{"$f":"ABS('Indtastning resultatopgørelse'!C30)","v":0}]
[{"$f":"Forside!$C$1","v":"Blank"},{"$f":"Forside!$C$4","v":2023},2023,"RES","Indtægter",4,4,"Andre indtægter","4.1","Deltagerbetaling, heltidsuddannelse",{"$f":"ABS('Indtastning resultatopgørelse'!C33)","v":0}]
[{"$f":"Forside!$C$1","v":"Blank"},{"$f":"Forside!$C$4","v":2023},2023,"RES","Indtægter",4,4,"Andre indtægter","4.2","Deltagerbetaling deltidsuddannelse/Åben uddannelse",{"$f":"ABS('Indtastning resultatopgørelse'!C34)","v":0}]
[{"$f":"Forside!$C$1","v":"Blank"},{"$f":"Forside!$C$4","v":2023},2023,"RES","Indtægter",4,4,"Andre indtægter","4.3","Udlejning af lokaler og udstyr",{"$f":"ABS('Indtastning resultatopgørelse'!C35)","v":0}]
[{"$f":"Forside!$C$1","v":"Blank"},{"$f":"Forside!$C$4","v":2023},2023,"RES","Indtægter",4,4,"Andre indtægter","4.4","Salg af bygninger, grunde og materialle anlæg",{"$f":"ABS('Indtastning resultatopgørelse'!C36)","v":0}]
[{"$f":"Forside!$C$1","v":"Blank"},{"$f":"Forside!$C$4","v":2023},{"$f":"+B25","v":2023},"RES","Indtægter",2,2,"Andre indtægter","4.5","Kostafdelinger og kollegier",{"$f":"ABS('Indtastning resultatopgørelse'!C37)","v":0}]
[{"$f":"Forside!$C$1","v":"Blank"},{"$f":"Forside!$C$4","v":2023},2023,"RES","Indtægter",4,4,"Andre indtægter","4.6","Øvrige indtægter",{"$f":"ABS('Indtastning resultatopgørelse'!C38)","v":0}]
[{"$f":"Forside!$C$1","v":"Blank"},{"$f":"Forside!$C$4","v":2023},2023,"RES","Omkostninger",5,5,"Uddannelse","5.1","Personaleomkostninger",0]
[{"$f":"Forside!$C$1","v":"Blank"},{"$f":"Forside!$C$4","v":2023},2023,"RES","Omkostninger",5,5,"Uddannelse","5.2","Af- og Nedskrivninger",0]
[{"$f":"Forside!$C$1","v":"Blank"},{"$f":"Forside!$C$4","v":2023},2023,"RES","Omkostninger",5,5,"Uddannelse","5.3","Øvrige driftsomkostninger",0]
[{"$f":"Forside!$C$1","v":"Blank"},{"$f":"Forside!$C$4","v":2023},2023,"RES","Omkostninger",6,6,"Forskning og udvikling","6.1","Personaleomkostninger",0]
[{"$f":"Forside!$C$1","v":"Blank"},{"$f":"Forside!$C$4","v":2023},2023,"RES","Omkostninger",6,6,"Forskning og udvikling","6.2","Af- og Nedskrivninger",0]
[{"$f":"Forside!$C$1","v":"Blank"},{"$f":"Forside!$C$4","v":2023},2023,"RES","Omkostninger",6,6,"Forskning og udvikling","6.3","Øvrige driftsomkostninger",0]
[{"$f":"Forside!$C$1","v":"Blank"},{"$f":"Forside!$C$4","v":2023},2023,"RES","Omkostninger",7,7,"Formidling og videnudveksling","7.1","Personaleomkostninger",0]
[{"$f":"Forside!$C$1","v":"Blank"},{"$f":"Forside!$C$4","v":2023},2023,"RES","Omkostninger",7,7,"Formidling og videnudveksling","7.2","Af- og Nedskrivninger",0]
[{"$f":"Forside!$C$1","v":"Blank"},{"$f":"Forside!$C$4","v":2023},2023,"RES","Omkostninger",7,7,"Formidling og videnudveksling","7.3","Øvrige driftsomkostninger",0]
[{"$f":"Forside!$C$1","v":"Blank"},{"$f":"Forside!$C$4","v":2023},2023,"RES","Omkostninger",8,8,"Myndighedsbetjening, rådgivning og øvige ydelser","8.1","Personaleomkostninger",0]
[{"$f":"Forside!$C$1","v":"Blank"},{"$f":"Forside!$C$4","v":2023},2023,"RES","Omkostninger",8,8,"Myndighedsbetjening, rådgivning og øvige ydelser","8.2","Af- og Nedskrivninger",0]
[{"$f":"Forside!$C$1","v":"Blank"},{"$f":"Forside!$C$4","v":2023},2023,"RES","Omkostninger",8,8,"Myndighedsbetjening, rådgivning og øvige ydelser","8.3","Øvrige driftsomkostninger",0]
[{"$f":"Forside!$C$1","v":"Blank"},{"$f":"Forside!$C$4","v":2023},2023,"RES","Omkostninger",9,9,"Kostafdelinger og kollegier","9.1","Personaleomkostninger",0]
[{"$f":"Forside!$C$1","v":"Blank"},{"$f":"Forside!$C$4","v":2023},2023,"RES","Omkostninger",9,9,"Kostafdelinger og kollegier","9.2","Af- og Nedskrivninger",0]
[{"$f":"Forside!$C$1","v":"Blank"},{"$f":"Forside!$C$4","v":2023},2023,"RES","Omkostninger",9,9,"Kostafdelinger og kollegier","9.3","Øvrige driftsomkostninger",0]
[{"$f":"Forside!$C$1","v":"Blank"},{"$f":"Forside!$C$4","v":2023},2023,"RES","Omkostninger",10,10,"Generelle fællesomkostninger","10.1","Personaleomkostninger",{"$f":"'Indtastning resultatopgørelse'!C41","v":0}]
[{"$f":"Forside!$C$1","v":"Blank"},{"$f":"Forside!$C$4","v":2023},2023,"RES","Omkostninger",10,10,"Generelle fællesomkostninger","10.2","Af- og Nedskrivninger",{"$f":"'Indtastning resultatopgørelse'!C43","v":0}]
[{"$f":"Forside!$C$1","v":"Blank"},{"$f":"Forside!$C$4","v":2023},2023,"RES","Omkostninger",10,10,"Generelle fællesomkostninger","10.3","Øvrige driftsomkostninger",{"$f":"'Indtastning resultatopgørelse'!C45","v":0}]
[{"$f":"Forside!$C$1","v":"Blank"},{"$f":"Forside!$C$4","v":2023},2023,"RES","Omkostninger",11,11,"Bygninger og bygningsdrift","11.1","Personaleomkostninger",0]
[{"$f":"Forside!$C$1","v":"Blank"},{"$f":"Forside!$C$4","v":2023},2023,"RES","Omkostninger",11,11,"Bygninger og bygningsdrift","11.2","Husleje",{"$f":"'Indtastning resultatopgørelse'!C42","v":0}]
[{"$f":"Forside!$C$1","v":"Blank"},{"$f":"Forside!$C$4","v":2023},2023,"RES","Omkostninger",11,11,"Bygninger og bygningsdrift","11.3","Af- og Nedskrivninger",0]
[{"$f":"Forside!$C$1","v":"Blank"},{"$f":"Forside!$C$4","v":2023},{"$f":"+B48","v":2023},"RES","Omkostninger",11,11,"Bygninger og bygningsdrift","11.4","Tab ved salg af bygninger og grunde samt nedskrivning på bygningertil salg",{"$f":"'Indtastning resultatopgørelse'!C44","v":0}]
[{"$f":"Forside!$C$1","v":"Blank"},{"$f":"Forside!$C$4","v":2023},2023,"RES","Omkostninger",11,11,"Bygninger og bygningsdrift","11.5","Øvrige driftsomkostninger",0]
[{"$f":"Forside!$C$1","v":"Blank"},{"$f":"Forside!$C$4","v":2023},2023,"RES","Indtægter",12,12,"Finansielle indtægter","12.1","Renteindtægter og andre finansielle indtægter",{"$f":"ABS('Indtastning resultatopgørelse'!C48)","v":0}]
[{"$f":"Forside!$C$1","v":"Blank"},{"$f":"Forside!$C$4","v":2023},2023,"RES","Indtægter",12,12,"Finansielle indtægter","12.2","kursgevinster på værdipapirer",{"$f":"ABS('Indtastning resultatopgørelse'!C49)","v":0}]
[{"$f":"Forside!$C$1","v":"Blank"},{"$f":"Forside!$C$4","v":2023},2023,"RES","Omkostninger",12,12,"Finansielle omkostninger","12.3","Renteomkostninger og andre finansielle omkostninger",{"$f":"ABS('Indtastning resultatopgørelse'!C52)","v":0}]
[{"$f":"Forside!$C$1","v":"Blank"},{"$f":"Forside!$C$4","v":2023},2023,"RES","Omkostninger",12,12,"Finansielle omkostninger","12.4","Kurstab på værdipapirer",{"$f":"ABS('Indtastning resultatopgørelse'!C53)","v":0}]
[{"$f":"Forside!$C$1","v":"Blank"},{"$f":"Forside!$C$4","v":2023},2023,"RES","Indtægter",13,13,"Ekstraordinære indtægter","13.1","Ekstraordinære indtægter",{"$f":"ABS('Indtastning resultatopgørelse'!C57)","v":0}]
[{"$f":"Forside!$C$1","v":"Blank"},{"$f":"Forside!$C$4","v":2023},2023,"RES","Omkostninger",13,13,"Ekstraordinære omkostninger","13.2","Ekstraordinære omkostninger",{"$f":"ABS('Indtastning resultatopgørelse'!C58)","v":0}]
[{"$f":"Forside!$C$1","v":"Blank"},{"$f":"Forside!$C$4","v":2023},{"$f":"+B56-1","v":2022},"RES","Indtægter",1,1,"Statstilskud","1.1","Uddannelsestilskud, heltidsuddannelse",{"$f":"ABS('Indtastning resultatopgørelse'!D8)","v":0}]
[{"$f":"Forside!$C$1","v":"Blank"},{"$f":"Forside!$C$4","v":2023},{"$f":"+B57-1","v":2022},"RES","Indtægter",1,1,"Statstilskud","1.2","Uddannelsestilskud, deltidsuddannelse/Åben uddannelse",{"$f":"ABS('Indtastning resultatopgørelse'!D9)","v":0}]
[{"$f":"Forside!$C$1","v":"Blank"},{"$f":"Forside!$C$4","v":2023},2022,"RES","Indtægter",1,1,"Statstilskud","1.3","Uddannelsestilskud fra BUVM",{"$f":"ABS('Indtastning resultatopgørelse'!D10)","v":0}]
[{"$f":"Forside!$C$1","v":"Blank"},{"$f":"Forside!$C$4","v":2023},2022,"RES","Indtægter",1,1,"Statstilskud","1.4","Tilskud til øvrige formål",{"$f":"ABS('Indtastning resultatopgørelse'!D11)","v":0}]
[{"$f":"Forside!$C$1","v":"Blank"},{"$f":"Forside!$C$4","v":2023},2022,"RES","Indtægter",1,1,"Statstilskud","1.5","Tilskud til forskning og udvikling (Frascati)",{"$f":"ABS('Indtastning resultatopgørelse'!D12)","v":0}]
[{"$f":"Forside!$C$1","v":"Blank"},{"$f":"Forside!$C$4","v":2023},2022,"RES","Indtægter",1,1,"Statstilskud","1.6","Tilskud til Forskningsbaseret Myndighedsbetjening",{"$f":"ABS('Indtastning resultatopgørelse'!D13)","v":0}]
[{"$f":"Forside!$C$1","v":"Blank"},{"$f":"Forside!$C$4","v":2023},2022,"RES","Indtægter",1,1,"Statstilskud","1.7","Tilskud til kostafdeling",{"$f":"ABS('Indtastning resultatopgørelse'!D14)","v":0}]
[{"$f":"Forside!$C$1","v":"Blank"},{"$f":"Forside!$C$4","v":2023},2022,"RES","Indtægter",1,1,"Statstilskud","1.8","Særlige tilskud",{"$f":"ABS('Indtastning resultatopgørelse'!D15)","v":0}]
[{"$f":"Forside!$C$1","v":"Blank"},{"$f":"Forside!$C$4","v":2023},2022,"RES","Indtægter",2,2,"Øvrige tilskud","2.1","Tilskud til forskning fra offentlige danske kilder m.v.",{"$f":"ABS('Indtastning resultatopgørelse'!D18)","v":0}]
[{"$f":"Forside!$C$1","v":"Blank"},{"$f":"Forside!$C$4","v":2023},2022,"RES","Indtægter",2,2,"Øvrige tilskud","2.2","Tilskud til forskning fra private danske kilder m.v.",{"$f":"ABS('Indtastning resultatopgørelse'!D19)","v":0}]
[{"$f":"Forside!$C$1","v":"Blank"},{"$f":"Forside!$C$4","v":2023},2022,"RES","Indtægter",2,2,"Øvrige tilskud","2.3","Tilskud til forskning fra EU",{"$f":"ABS('Indtastning resultatopgørelse'!D20)","v":0}]
[{"$f":"Forside!$C$1","v":"Blank"},{"$f":"Forside!$C$4","v":2023},2022,"RES","Indtægter",2,2,"Øvrige tilskud","2.4","Tilskud til forskning fra udenlandske kilder m.v.",{"$f":"ABS('Indtastning resultatopgørelse'!D21)","v":0}]
[{"$f":"Forside!$C$1","v":"Blank"},{"$f":"Forside!$C$4","v":2023},2022,"RES","Indtægter",2,2,"Øvrige tilskud","2.5","Andre tilskudsfinansierede aktiviteter",{"$f":"ABS('Indtastning resultatopgørelse'!D22)","v":0}]
[{"$f":"Forside!$C$1","v":"Blank"},{"$f":"Forside!$C$4","v":2023},{"$f":"+B69-1","v":2022},"RES","Indtægter",2,2,"Øvrige tilskud","2.6","Periodiserede anlægsdonationer",{"$f":"ABS('Indtastning resultatopgørelse'!D23)","v":0}]
[{"$f":"Forside!$C$1","v":"Blank"},{"$f":"Forside!$C$4","v":2023},2022,"RES","Indtægter",2,2,"Øvrige tilskud","2.7","Ekstern rekvirentbetaling",{"$f":"ABS('Indtastning resultatopgørelse'!D24)","v":0}]
[{"$f":"Forside!$C$1","v":"Blank"},{"$f":"Forside!$C$4","v":2023},2022,"RES","Indtægter",3,3,"Salg af varer og tjenesteydelser","3.1","Kursusvirksomhed (Indtægtsdækket virksomhed)",{"$f":"ABS('Indtastning resultatopgørelse'!D27)","v":0}]
[{"$f":"Forside!$C$1","v":"Blank"},{"$f":"Forside!$C$4","v":2023},2022,"RES","Indtægter",3,3,"Salg af varer og tjenesteydelser","3.2","Retsmedicinske ydelser",{"$f":"ABS('Indtastning resultatopgørelse'!D28)","v":0}]
[{"$f":"Forside!$C$1","v":"Blank"},{"$f":"Forside!$C$4","v":2023},2022,"RES","Indtægter",3,3,"Salg af varer og tjenesteydelser","3.3.","Administrative fællesskaber, værtsinstitution",{"$f":"ABS('Indtastning resultatopgørelse'!D29)","v":0}]
[{"$f":"Forside!$C$1","v":"Blank"},{"$f":"Forside!$C$4","v":2023},2022,"RES","Indtægter",3,3,"Salg af varer og tjenesteydelser","3.4","Øvrigt salg af varer og tjenesteydelser",{"$f":"ABS('Indtastning resultatopgørelse'!D30)","v":0}]
[{"$f":"Forside!$C$1","v":"Blank"},{"$f":"Forside!$C$4","v":2023},2022,"RES","Indtægter",4,4,"Andre indtægter","4.1","Deltagerbetaling, heltidsuddannelse",{"$f":"ABS('Indtastning resultatopgørelse'!D33)","v":0}]
[{"$f":"Forside!$C$1","v":"Blank"},{"$f":"Forside!$C$4","v":2023},2022,"RES","Indtægter",4,4,"Andre indtægter","4.2","Deltagerbetaling deltidsuddannelse/Åben uddannelse",{"$f":"ABS('Indtastning resultatopgørelse'!D34)","v":0}]
[{"$f":"Forside!$C$1","v":"Blank"},{"$f":"Forside!$C$4","v":2023},2022,"RES","Indtægter",4,4,"Andre indtægter","4.3","Udlejning af lokaler og udstyr",{"$f":"ABS('Indtastning resultatopgørelse'!D35)","v":0}]
[{"$f":"Forside!$C$1","v":"Blank"},{"$f":"Forside!$C$4","v":2023},2022,"RES","Indtægter",4,4,"Andre indtægter","4.4","Salg af bygninger, grunde og materialle anlæg",{"$f":"ABS('Indtastning resultatopgørelse'!D36)","v":0}]
[{"$f":"Forside!$C$1","v":"Blank"},{"$f":"Forside!$C$4","v":2023},{"$f":"+B79-1","v":2022},"RES","Indtægter",2,2,"Andre indtægter","4.5","Kostafdelinger og kollegier",{"$f":"ABS('Indtastning resultatopgørelse'!D37)","v":0}]
[{"$f":"Forside!$C$1","v":"Blank"},{"$f":"Forside!$C$4","v":2023},2022,"RES","Indtægter",4,4,"Andre indtægter","4.6","Øvrige indtægter",{"$f":"ABS('Indtastning resultatopgørelse'!D38)","v":0}]
[{"$f":"Forside!$C$1","v":"Blank"},{"$f":"Forside!$C$4","v":2023},2022,"RES","Omkostninger",5,5,"Uddannelse","5.1","Personaleomkostninger",0]
[{"$f":"Forside!$C$1","v":"Blank"},{"$f":"Forside!$C$4","v":2023},2022,"RES","Omkostninger",5,5,"Uddannelse","5.2","Af- og Nedskrivninger",0]
[{"$f":"Forside!$C$1","v":"Blank"},{"$f":"Forside!$C$4","v":2023},2022,"RES","Omkostninger",5,5,"Uddannelse","5.3","Øvrige driftsomkostninger",0]
[{"$f":"Forside!$C$1","v":"Blank"},{"$f":"Forside!$C$4","v":2023},2022,"RES","Omkostninger",6,6,"Forskning og udvikling","6.1","Personaleomkostninger",0]
[{"$f":"Forside!$C$1","v":"Blank"},{"$f":"Forside!$C$4","v":2023},2022,"RES","Omkostninger",6,6,"Forskning og udvikling","6.2","Af- og Nedskrivninger",0]
[{"$f":"Forside!$C$1","v":"Blank"},{"$f":"Forside!$C$4","v":2023},2022,"RES","Omkostninger",6,6,"Forskning og udvikling","6.3","Øvrige driftsomkostninger",0]
[{"$f":"Forside!$C$1","v":"Blank"},{"$f":"Forside!$C$4","v":2023},2022,"RES","Omkostninger",7,7,"Formidling og videnudveksling","7.1","Personaleomkostninger",0]
[{"$f":"Forside!$C$1","v":"Blank"},{"$f":"Forside!$C$4","v":2023},2022,"RES","Omkostninger",7,7,"Formidling og videnudveksling","7.2","Af- og Nedskrivninger",0]
[{"$f":"Forside!$C$1","v":"Blank"},{"$f":"Forside!$C$4","v":2023},2022,"RES","Omkostninger",7,7,"Formidling og videnudveksling","7.3","Øvrige driftsomkostninger",0]
[{"$f":"Forside!$C$1","v":"Blank"},{"$f":"Forside!$C$4","v":2023},2022,"RES","Omkostninger",8,8,"Myndighedsbetjening, rådgivning og øvige ydelser","8.1","Personaleomkostninger",0]
[{"$f":"Forside!$C$1","v":"Blank"},{"$f":"Forside!$C$4","v":2023},2022,"RES","Omkostninger",8,8,"Myndighedsbetjening, rådgivning og øvige ydelser","8.2","Af- og Nedskrivninger",0]
[{"$f":"Forside!$C$1","v":"Blank"},{"$f":"Forside!$C$4","v":2023},2022,"RES","Omkostninger",8,8,"Myndighedsbetjening, rådgivning og øvige ydelser","8.3","Øvrige driftsomkostninger",0]
[{"$f":"Forside!$C$1","v":"Blank"},{"$f":"Forside!$C$4","v":2023},2022,"RES","Omkostninger",9,9,"Kostafdelinger og kollegier","9.1","Personaleomkostninger",0]
[{"$f":"Forside!$C$1","v":"Blank"},{"$f":"Forside!$C$4","v":2023},2022,"RES","Omkostninger",9,9,"Kostafdelinger og kollegier","9.2","Af- og Nedskrivninger",0]
[{"$f":"Forside!$C$1","v":"Blank"},{"$f":"Forside!$C$4","v":2023},2022,"RES","Omkostninger",9,9,"Kostafdelinger og kollegier","9.3","Øvrige driftsomkostninger",0]
[{"$f":"Forside!$C$1","v":"Blank"},{"$f":"Forside!$C$4","v":2023},2022,"RES","Omkostninger",10,10,"Generelle fællesomkostninger","10.1","Personaleomkostninger",{"$f":"'Indtastning resultatopgørelse'!D41","v":0}]
[{"$f":"Forside!$C$1","v":"Blank"},{"$f":"Forside!$C$4","v":2023},2022,"RES","Omkostninger",10,10,"Generelle fællesomkostninger","10.2","Af- og Nedskrivninger",{"$f":"'Indtastning resultatopgørelse'!D43","v":0}]
[{"$f":"Forside!$C$1","v":"Blank"},{"$f":"Forside!$C$4","v":2023},2022,"RES","Omkostninger",10,10,"Generelle fællesomkostninger","10.3","Øvrige driftsomkostninger",{"$f":"'Indtastning resultatopgørelse'!D45","v":0}]
[{"$f":"Forside!$C$1","v":"Blank"},{"$f":"Forside!$C$4","v":2023},2022,"RES","Omkostninger",11,11,"Bygninger og bygningsdrift","11.1","Personaleomkostninger",0]
[{"$f":"Forside!$C$1","v":"Blank"},{"$f":"Forside!$C$4","v":2023},2022,"RES","Omkostninger",11,11,"Bygninger og bygningsdrift","11.2","Husleje",{"$f":"'Indtastning resultatopgørelse'!D42","v":0}]
[{"$f":"Forside!$C$1","v":"Blank"},{"$f":"Forside!$C$4","v":2023},2022,"RES","Omkostninger",11,11,"Bygninger og bygningsdrift","11.3","Af- og Nedskrivninger",0]
[{"$f":"Forside!$C$1","v":"Blank"},{"$f":"Forside!$C$4","v":2023},2022,"RES","Omkostninger",11,11,"Bygninger og bygningsdrift","11.4","Tab ved salg af bygninger og grunde samt nedskrivning på bygningertil salg",{"$f":"'Indtastning resultatopgørelse'!D44","v":0}]
[{"$f":"Forside!$C$1","v":"Blank"},{"$f":"Forside!$C$4","v":2023},2022,"RES","Omkostninger",11,11,"Bygninger og bygningsdrift","11.5","Øvrige driftsomkostninger",0]
[{"$f":"Forside!$C$1","v":"Blank"},{"$f":"Forside!$C$4","v":2023},2022,"RES","Indtægter",12,12,"Finansielle indtægter","12.1","Renteindtægter og andre finansielle indtægter",{"$f":"ABS('Indtastning resultatopgørelse'!D48)","v":0}]
[{"$f":"Forside!$C$1","v":"Blank"},{"$f":"Forside!$C$4","v":2023},2022,"RES","Indtægter",12,12,"Finansielle indtægter","12.2","kursgevinster på værdipapirer",{"$f":"ABS('Indtastning resultatopgørelse'!D49)","v":0}]
[{"$f":"Forside!$C$1","v":"Blank"},{"$f":"Forside!$C$4","v":2023},2022,"RES","Omkostninger",12,12,"Finansielle omkostninger","12.3","Renteomkostninger og andre finansielle omkostninger",{"$f":"ABS('Indtastning resultatopgørelse'!D52)","v":0}]
[{"$f":"Forside!$C$1","v":"Blank"},{"$f":"Forside!$C$4","v":2023},2022,"RES","Omkostninger",12,12,"Finansielle omkostninger","12.4","Kurstab på værdipapirer",{"$f":"ABS('Indtastning resultatopgørelse'!D53)","v":0}]
[{"$f":"Forside!$C$1","v":"Blank"},{"$f":"Forside!$C$4","v":2023},2022,"RES","Indtægter",13,13,"Ekstraordinære indtægter","13.1","Ekstraordinære indtægter",{"$f":"ABS('Indtastning resultatopgørelse'!D57)","v":0}]
[{"$f":"Forside!$C$1","v":"Blank"},{"$f":"Forside!$C$4","v":2023},2022,"RES","Omkostninger",13,13,"Ekstraordinære omkostninger","13.2","Ekstraordinære omkostninger",{"$f":"ABS('Indtastning resultatopgørelse'!D58)","v":0}]
[{"$f":"Forside!$C$1","v":"Blank"},{"$f":"Forside!$C$4","v":2023},{"$f":"B110","v":2023},"BAL","Aktiver",15,14,"Immaterielle anlægsaktiver","14.1","Erhvervede koncessioner, patenter, licenser, software m.v.",{"$f":"ABS('Indtastning balance'!C9)","v":0}]
[{"$f":"Forside!$C$1","v":"Blank"},{"$f":"Forside!$C$4","v":2023},2023,"BAL","Aktiver",15,14,"Immaterielle anlægsaktiver","14.2","Færdiggjorte Udviklingsprojekter",{"$f":"ABS('Indtastning balance'!C10)","v":0}]
[{"$f":"Forside!$C$1","v":"Blank"},{"$f":"Forside!$C$4","v":2023},2023,"BAL","Aktiver",15,14,"Immaterielle anlægsaktiver","14.3","Immaterielle udviklingsprojekter under opførelse",{"$f":"ABS('Indtastning balance'!C11)","v":0}]
[{"$f":"Forside!$C$1","v":"Blank"},{"$f":"Forside!$C$4","v":2023},2023,"BAL","Aktiver",16,15,"Materielle anlægsaktiver","15.1","Grunde og bygninger",{"$f":"ABS('Indtastning balance'!C14)","v":0}]
[{"$f":"Forside!$C$1","v":"Blank"},{"$f":"Forside!$C$4","v":2023},2023,"BAL","Aktiver",16,15,"Materielle anlægsaktiver","15.2","Igangværende arbejde for egen regning",{"$f":"ABS('Indtastning balance'!C15)","v":0}]
[{"$f":"Forside!$C$1","v":"Blank"},{"$f":"Forside!$C$4","v":2023},2023,"BAL","Aktiver",16,15,"Materielle anlægsaktiver","15.3","Installationer",{"$f":"ABS('Indtastning balance'!C16)","v":0}]
[{"$f":"Forside!$C$1","v":"Blank"},{"$f":"Forside!$C$4","v":2023},2023,"BAL","Aktiver",16,15,"Materielle anlægsaktiver","15.4","Indretning af lejede lokaler",{"$f":"ABS('Indtastning balance'!C17)","v":0}]
[{"$f":"Forside!$C$1","v":"Blank"},{"$f":"Forside!$C$4","v":2023},2023,"BAL","Aktiver",16,15,"Materielle anlægsaktiver","15.5","Transportmateriel inkl. skibe",{"$f":"ABS('Indtastning balance'!C18)","v":0}]
[{"$f":"Forside!$C$1","v":"Blank"},{"$f":"Forside!$C$4","v":2023},2023,"BAL","Aktiver",16,15,"Materielle anlægsaktiver","15.6","Produktionsanlæg, maskiner og udstyr",{"$f":"ABS('Indtastning balance'!C19)","v":0}]
[{"$f":"Forside!$C$1","v":"Blank"},{"$f":"Forside!$C$4","v":2023},2023,"BAL","Aktiver",16,15,"Materielle anlægsaktiver","15.7","It-udstyr",{"$f":"ABS('Indtastning balance'!C20)","v":0}]
[{"$f":"Forside!$C$1","v":"Blank"},{"$f":"Forside!$C$4","v":2023},2023,"BAL","Aktiver",16,15,"Materielle anlægsaktiver","15.8","Inventar",{"$f":"ABS('Indtastning balance'!C21)","v":0}]
[{"$f":"Forside!$C$1","v":"Blank"},{"$f":"Forside!$C$4","v":2023},2023,"BAL","Aktiver",17,16,"Finansielle anlægsaktiver","16.1","Aktier/andele i pengeinstitutter",{"$f":"ABS('Indtastning balance'!C24)","v":0}]
[{"$f":"Forside!$C$1","v":"Blank"},{"$f":"Forside!$C$4","v":2023},2023,"BAL","Aktiver",18,16,"Finansielle anlægsaktiver","16.2","Andelsbeviser",{"$f":"ABS('Indtastning balance'!C25)","v":0}]
[{"$f":"Forside!$C$1","v":"Blank"},{"$f":"Forside!$C$4","v":2023},2023,"BAL","Aktiver",19,16,"Finansielle anlægsaktiver","16.3","Kapitalandele i datterselskaber",{"$f":"ABS('Indtastning balance'!C26)","v":0}]
[{"$f":"Forside!$C$1","v":"Blank"},{"$f":"Forside!$C$4","v":2023},2023,"BAL","Aktiver",20,16,"Finansielle anlægsaktiver","16.4","Øvrige kapitalandele",{"$f":"ABS('Indtastning balance'!C27)","v":0}]
[{"$f":"Forside!$C$1","v":"Blank"},{"$f":"Forside!$C$4","v":2023},2023,"BAL","Aktiver",21,16,"Finansielle anlægsaktiver","16.5","Gældsbreve fra staten",{"$f":"ABS('Indtastning balance'!C28)","v":0}]
[{"$f":"Forside!$C$1","v":"Blank"},{"$f":"Forside!$C$4","v":2023},2023,"BAL","Aktiver",22,16,"Finansielle anlægsaktiver","16.6","Lån til dattervirksomheder",{"$f":"ABS('Indtastning balance'!C29)","v":0}]
[{"$f":"Forside!$C$1","v":"Blank"},{"$f":"Forside!$C$4","v":2023},2023,"BAL","Aktiver","31e",16,"Finansielle anlægsaktiver","16.7","Afledte finansielle instrumenter - Aktiver 1",{"$f":"ABS('Indtastning balance'!C30)","v":0}]
[{"$f":"Forside!$C$1","v":"Blank"},{"$f":"Forside!$C$4","v":2023},2023,"BAL","Aktiver",23,16,"Finansielle anlægsaktiver","16.8","Deposita vedr. lejemål",{"$f":"ABS('Indtastning balance'!C31)","v":0}]
[{"$f":"Forside!$C$1","v":"Blank"},{"$f":"Forside!$C$4","v":2023},2023,"BAL","Aktiver",23,16,"Finansielle anlægsaktiver","16.9","Øvrige deposita",{"$f":"ABS('Indtastning balance'!C32)","v":0}]
[{"$f":"Forside!$C$1","v":"Blank"},{"$f":"Forside!$C$4","v":2023},2023,"BAL","Aktiver",null,17,"Varebeholdninger","17.1","Varebeholdninger",{"$f":"ABS('Indtastning balance'!C34)","v":0}]
[{"$f":"Forside!$C$1","v":"Blank"},{"$f":"Forside!$C$4","v":2023},2023,"BAL","Aktiver",23,18,"Tilgodehavender","18.1","Deposita vedr. lejemål",{"$f":"ABS('Indtastning balance'!C36)","v":0}]
[{"$f":"Forside!$C$1","v":"Blank"},{"$f":"Forside!$C$4","v":2023},2023,"BAL","Aktiver",23,18,"Tilgodehavender","18.2","Øvrige deposita",{"$f":"ABS('Indtastning balance'!C37)","v":0}]
[{"$f":"Forside!$C$1","v":"Blank"},{"$f":"Forside!$C$4","v":2023},2023,"BAL","Aktiver",24,18,"Tilgodehavender","18.3","Tilgodehavender fra salg af varer og tjenesteydelser",{"$f":"ABS('Indtastning balance'!C38)","v":0}]
[{"$f":"Forside!$C$1","v":"Blank"},{"$f":"Forside!$C$4","v":2023},2023,"BAL","Aktiver",24,18,"Tilgodehavender","18.4","Tilgodehavender hos dattervirksomheder",{"$f":"ABS('Indtastning balance'!C39)","v":0}]
[{"$f":"Forside!$C$1","v":"Blank"},{"$f":"Forside!$C$4","v":2023},2023,"BAL","Aktiver",24,18,"Tilgodehavender","18.5","Reserveret til tab på tilgodehavender fra salg af varer og ydelser m.v.",{"$f":"ABS('Indtastning balance'!C40)","v":0}]
[{"$f":"Forside!$C$1","v":"Blank"},{"$f":"Forside!$C$4","v":2023},2023,"BAL","Aktiver",25,18,"Tilgodehavender","18.6","Tilgodehavender fra igangværende tilskudsaktivitet",{"$f":"ABS('Indtastning balance'!C41)","v":0}]
[{"$f":"Forside!$C$1","v":"Blank"},{"$f":"Forside!$C$4","v":2023},2023,"BAL","Aktiver",25,18,"Tilgodehavender","18.7","Hensættelse til tab på igangværende tilskudsaktivitet",{"$f":"ABS('Indtastning balance'!C42)","v":0}]
[{"$f":"Forside!$C$1","v":"Blank"},{"$f":"Forside!$C$4","v":2023},2023,"BAL","Aktiver",26,18,"Tilgodehavender","18.8","Andre tilgodehavender",{"$f":"ABS('Indtastning balance'!C43)","v":0}]
[{"$f":"Forside!$C$1","v":"Blank"},{"$f":"Forside!$C$4","v":2023},2023,"BAL","Aktiver",null,18,"Tilgodehavender","18.9","Mellemregning med Uddannelses- og Forskningsministeriet",{"$f":"ABS('Indtastning balance'!C44)","v":0}]
[{"$f":"Forside!$C$1","v":"Blank"},{"$f":"Forside!$C$4","v":2023},2023,"BAL","Aktiver",null,18,"Tilgodehavender","18.10","Mellemregning med Børne- og Undervisningsministeriet",{"$f":"ABS('Indtastning balance'!C45)","v":0}]
[{"$f":"Forside!$C$1","v":"Blank"},{"$f":"Forside!$C$4","v":2023},2023,"BAL","Aktiver",27,18,"Tilgodehavender","18.11","Periodeafgrænsningsposter",{"$f":"ABS('Indtastning balance'!C46)","v":0}]
[{"$f":"Forside!$C$1","v":"Blank"},{"$f":"Forside!$C$4","v":2023},2023,"BAL","Aktiver","31e",18,"Tilgodehavender","18.12","Afledte finansielle instrumenter - Aktiver 2",{"$f":"ABS('Indtastning balance'!C49)","v":0}]
[{"$f":"Forside!$C$1","v":"Blank"},{"$f":"Forside!$C$4","v":2023},2023,"BAL","Aktiver",28,19,"Værdipapirer og likvide beholdninger","19.1","Obligationer",{"$f":"ABS('Indtastning balance'!C50)","v":0}]
[{"$f":"Forside!$C$1","v":"Blank"},{"$f":"Forside!$C$4","v":2023},2023,"BAL","Aktiver",28,19,"Værdipapirer og likvide beholdninger","19.2","Øvrige værdipapirer",{"$f":"ABS('Indtastning balance'!C51)","v":0}]
[{"$f":"Forside!$C$1","v":"Blank"},{"$f":"Forside!$C$4","v":2023},2023,"BAL","Aktiver",null,19,"Værdipapirer og likvide beholdninger","19.3","Likvide beholdninger",{"$f":"ABS('Indtastning balance'!C53)","v":0}]
[{"$f":"Forside!$C$1","v":"Blank"},{"$f":"Forside!$C$4","v":2023},2023,"BAL","Passiver"," ",20,"Egenkapital","20.1","Egenkapital pr. [oprettelsesdato]",{"$f":"ABS('Indtastning balance'!C55)","v":0}]
[{"$f":"Forside!$C$1","v":"Blank"},{"$f":"Forside!$C$4","v":2023},2023,"BAL","Passiver"," ",20,"Egenkapital","20.2","Overført resultat",{"$f":"ABS('Indtastning balance'!C56)","v":0}]
[{"$f":"Forside!$C$1","v":"Blank"},{"$f":"Forside!$C$4","v":2023},2023,"BAL","Passiver"," ",20,"Egenkapital","20.3","Øvrig egenkapital",{"$f":"ABS('Indtastning balance'!C57)","v":0}]
[{"$f":"Forside!$C$1","v":"Blank"},{"$f":"Forside!$C$4","v":2023},2023,"BAL","Passiver",29,21,"Hensatte forpligtelser","21.1","Reetablering af lejemål",{"$f":"ABS('Indtastning balance'!C60)","v":0}]
[{"$f":"Forside!$C$1","v":"Blank"},{"$f":"Forside!$C$4","v":2023},2023,"BAL","Passiver",29,21,"Hensatte forpligtelser","21.2","Lønrelaterede hensatte forpligtelser",{"$f":"ABS('Indtastning balance'!C61)","v":0}]
[{"$f":"Forside!$C$1","v":"Blank"},{"$f":"Forside!$C$4","v":2023},2023,"BAL","Passiver",29,21,"Hensatte forpligtelser","21.3","Andre hensatte forpligtelser",{"$f":"ABS('Indtastning balance'!C62)","v":0}]
[{"$f":"Forside!$C$1","v":"Blank"},{"$f":"Forside!$C$4","v":2023},2023,"BAL","Passiver",30,22,"Langfristede gældsforpligtelser","22.1","Periodiserede donationer",{"$f":"ABS('Indtastning balance'!C65)","v":0}]
[{"$f":"Forside!$C$1","v":"Blank"},{"$f":"Forside!$C$4","v":2023},2023,"BAL","Passiver","31a",22,"Langfristede gældsforpligtelser","22.2","Gæld til staten",{"$f":"ABS('Indtastning balance'!C66)","v":0}]
[{"$f":"Forside!$C$1","v":"Blank"},{"$f":"Forside!$C$4","v":2023},2023,"BAL","Passiver","31b",22,"Langfristede gældsforpligtelser","22.3","Gæld til kommuner",{"$f":"ABS('Indtastning balance'!C67)","v":0}]
[{"$f":"Forside!$C$1","v":"Blank"},{"$f":"Forside!$C$4","v":2023},2023,"BAL","Passiver","31c",22,"Langfristede gældsforpligtelser","22.4","Gæld til realkreditinstitutter",{"$f":"ABS('Indtastning balance'!C68)","v":0}]
[{"$f":"Forside!$C$1","v":"Blank"},{"$f":"Forside!$C$4","v":2023},2023,"BAL","Passiver","31d",22,"Langfristede gældsforpligtelser","22.5","Gæld til banker",{"$f":"ABS('Indtastning balance'!C69)","v":0}]
[{"$f":"Forside!$C$1","v":"Blank"},{"$f":"Forside!$C$4","v":2023},2023,"BAL","Passiver","31e",22,"Langfristede gældsforpligtelser","22.6","Afledte finansielle instrumenter - Passiver 1",{"$f":"ABS('Indtastning balance'!C70)","v":0}]
[{"$f":"Forside!$C$1","v":"Blank"},{"$f":"Forside!$C$4","v":2023},2023,"BAL","Passiver",32,22,"Langfristede gældsforpligtelser","22.7","Gæld vedrørende finansiel leasing",{"$f":"ABS('Indtastning balance'!C71)","v":0}]
[{"$f":"Forside!$C$1","v":"Blank"},{"$f":"Forside!$C$4","v":2023},2023,"BAL","Passiver"," ",22,"Langfristede gældsforpligtelser","22.8","Skyldige indefrosne feriemidler",{"$f":"ABS('Indtastning balance'!C72)","v":0}]
[{"$f":"Forside!$C$1","v":"Blank"},{"$f":"Forside!$C$4","v":2023},2023,"BAL","Passiver",33,22,"Langfristede gældsforpligtelser","22.9","Anden langfristet gæld",{"$f":"ABS('Indtastning balance'!C73)","v":0}]
[{"$f":"Forside!$C$1","v":"Blank"},{"$f":"Forside!$C$4","v":2023},2023,"BAL","Passiver",30,23,"Kortfristede gældsforpligtelser","23.1","Kortfristet del af periodiserede donationer",{"$f":"ABS('Indtastning balance'!C76)","v":0}]
[{"$f":"Forside!$C$1","v":"Blank"},{"$f":"Forside!$C$4","v":2023},2023,"BAL","Passiver",34,23,"Kortfristede gældsforpligtelser","23.2","Kortfristet del af langfristet statsgæld",{"$f":"ABS('Indtastning balance'!C77)","v":0}]
[{"$f":"Forside!$C$1","v":"Blank"},{"$f":"Forside!$C$4","v":2023},2023,"BAL","Passiver",34,23,"Kortfristede gældsforpligtelser","23.3","Kortfristet del af langfristet kommunal gæld",{"$f":"ABS('Indtastning balance'!C78)","v":0}]
[{"$f":"Forside!$C$1","v":"Blank"},{"$f":"Forside!$C$4","v":2023},2023,"BAL","Passiver",34,23,"Kortfristede gældsforpligtelser","23.4","Kortfristet del af gæld til banker og realkreditinstitutter",{"$f":"ABS('Indtastning balance'!C79)","v":0}]
[{"$f":"Forside!$C$1","v":"Blank"},{"$f":"Forside!$C$4","v":2023},2023,"BAL","Passiver",35,23,"Kortfristede gældsforpligtelser","23.5","Korte banklån",{"$f":"ABS('Indtastning balance'!C80)","v":0}]
[{"$f":"Forside!$C$1","v":"Blank"},{"$f":"Forside!$C$4","v":2023},2023,"BAL","Passiver",35,23,"Kortfristede gældsforpligtelser","23.6","Korte driftskreditter",{"$f":"ABS('Indtastning balance'!C81)","v":0}]
[{"$f":"Forside!$C$1","v":"Blank"},{"$f":"Forside!$C$4","v":2023},2023,"BAL","Passiver",35,23,"Kortfristede gældsforpligtelser","23.7","Træk på kassekredit",{"$f":"ABS('Indtastning balance'!C82)","v":0}]
[{"$f":"Forside!$C$1","v":"Blank"},{"$f":"Forside!$C$4","v":2023},2023,"BAL","Passiver","31e",23,"Kortfristede gældsforpligtelser","23.8","Afledte finansielle instrumenter - Passiver 2",{"$f":"ABS('Indtastning balance'!C83)","v":0}]
[{"$f":"Forside!$C$1","v":"Blank"},{"$f":"Forside!$C$4","v":2023},2023,"BAL","Passiver",null,23,"Kortfristede gældsforpligtelser","23.9","Skyldig løn",{"$f":"ABS('Indtastning balance'!C84)","v":0}]
[{"$f":"Forside!$C$1","v":"Blank"},{"$f":"Forside!$C$4","v":2023},2023,"BAL","Passiver",null,23,"Kortfristede gældsforpligtelser","23.10","Feriepengeforpligtelse",{"$f":"ABS('Indtastning balance'!C85)","v":0}]
[{"$f":"Forside!$C$1","v":"Blank"},{"$f":"Forside!$C$4","v":2023},2023,"BAL","Passiver",null,23,"Kortfristede gældsforpligtelser","23.11","Skyldige indefrosne feriemidler",{"$f":"ABS('Indtastning balance'!C86)","v":0}]
[{"$f":"Forside!$C$1","v":"Blank"},{"$f":"Forside!$C$4","v":2023},2023,"BAL","Passiver",null,23,"Kortfristede gældsforpligtelser","23.12","Forudbetalte bundne tilskud",{"$f":"ABS('Indtastning balance'!C87)","v":0}]
[{"$f":"Forside!$C$1","v":"Blank"},{"$f":"Forside!$C$4","v":2023},2023,"BAL","Passiver",null,23,"Kortfristede gældsforpligtelser","23.13","Mellemregning med Uddannelses- og Forskningsministeriet",{"$f":"ABS('Indtastning balance'!C88)","v":0}]
[{"$f":"Forside!$C$1","v":"Blank"},{"$f":"Forside!$C$4","v":2023},{"$f":"B174","v":2023},"BAL","Passiver",null,23,"Kortfristede gældsforpligtelser","23.14","Mellemregning med Børne- og Undervisningsministeriet",{"$f":"ABS('Indtastning balance'!C89)","v":0}]
[{"$f":"Forside!$C$1","v":"Blank"},{"$f":"Forside!$C$4","v":2023},2023,"BAL","Passiver",null,23,"Kortfristede gældsforpligtelser","23.15","Mellemregning med Skoleskibet DANMARK",{"$f":"ABS('Indtastning balance'!C90)","v":0}]
[{"$f":"Forside!$C$1","v":"Blank"},{"$f":"Forside!$C$4","v":2023},2023,"BAL","Passiver",36,23,"Kortfristede gældsforpligtelser","23.16","Forudbetalt tilskud for det kommende regnskabsår fra Uddannelses- og Forskningsministeriet",{"$f":"ABS('Indtastning balance'!C91)","v":0}]
[{"$f":"Forside!$C$1","v":"Blank"},{"$f":"Forside!$C$4","v":2023},2023,"BAL","Passiver",36,23,"Kortfristede gældsforpligtelser","23.17","Forudbetalt tilskud for det kommende regnskabsår fra Børne- og Undervisningsministeriet",{"$f":"ABS('Indtastning balance'!C92)","v":0}]
[{"$f":"Forside!$C$1","v":"Blank"},{"$f":"Forside!$C$4","v":2023},2023,"BAL","Passiver",36,23,"Kortfristede gældsforpligtelser","23.18","Periodiserede særtilskud fra Uddannelses- og Forskningsministeriet",{"$f":"ABS('Indtastning balance'!C93)","v":0}]
[{"$f":"Forside!$C$1","v":"Blank"},{"$f":"Forside!$C$4","v":2023},{"$f":"B179","v":2023},"BAL","Passiver",36,23,"Kortfristede gældsforpligtelser","23.19","Øvrige periodeafgrænsningsposter [evt. specifikation, f.eks. forudbetalt deltagerbetaling]",{"$f":"ABS('Indtastning balance'!C94)","v":0}]
[{"$f":"Forside!$C$1","v":"Blank"},{"$f":"Forside!$C$4","v":2023},2023,"BAL","Passiver",37,23,"Kortfristede gældsforpligtelser","23.20","Gæld til leverandører af varer og tjenesteydelser",{"$f":"ABS('Indtastning balance'!C95)","v":0}]
[{"$f":"Forside!$C$1","v":"Blank"},{"$f":"Forside!$C$4","v":2023},2023,"BAL","Passiver",37,23,"Kortfristede gældsforpligtelser","23.21","Gæld til dattervirksomheder",{"$f":"ABS('Indtastning balance'!C96)","v":0}]
[{"$f":"Forside!$C$1","v":"Blank"},{"$f":"Forside!$C$4","v":2023},2023,"BAL","Passiver",38,23,"Kortfristede gældsforpligtelser","23.22","Anden kortfristet gæld",{"$f":"ABS('Indtastning balance'!C97)","v":0}]
[{"$f":"Forside!$C$1","v":"Blank"},{"$f":"Forside!$C$4","v":2023},{"$f":"B183-1","v":2022},"BAL","Aktiver",15,14,"Immaterielle anlægsaktiver","14.1","Erhvervede koncessioner, patenter, licenser, software m.v.",{"$f":"ABS('Indtastning balance'!D9)","v":0}]
[{"$f":"Forside!$C$1","v":"Blank"},{"$f":"Forside!$C$4","v":2023},2022,"BAL","Aktiver",15,14,"Immaterielle anlægsaktiver","14.2","Færdiggjorte Udviklingsprojekter",{"$f":"ABS('Indtastning balance'!D10)","v":0}]
[{"$f":"Forside!$C$1","v":"Blank"},{"$f":"Forside!$C$4","v":2023},2022,"BAL","Aktiver",15,14,"Immaterielle anlægsaktiver","14.3","Immaterielle udviklingsprojekter under opførelse",{"$f":"ABS('Indtastning balance'!D11)","v":0}]
[{"$f":"Forside!$C$1","v":"Blank"},{"$f":"Forside!$C$4","v":2023},2022,"BAL","Aktiver",16,15,"Materielle anlægsaktiver","15.1","Grunde og bygninger",{"$f":"ABS('Indtastning balance'!D14)","v":0}]
[{"$f":"Forside!$C$1","v":"Blank"},{"$f":"Forside!$C$4","v":2023},2022,"BAL","Aktiver",16,15,"Materielle anlægsaktiver","15.2","Igangværende arbejde for egen regning",{"$f":"ABS('Indtastning balance'!D15)","v":0}]
[{"$f":"Forside!$C$1","v":"Blank"},{"$f":"Forside!$C$4","v":2023},2022,"BAL","Aktiver",16,15,"Materielle anlægsaktiver","15.3","Installationer",{"$f":"ABS('Indtastning balance'!D16)","v":0}]
[{"$f":"Forside!$C$1","v":"Blank"},{"$f":"Forside!$C$4","v":2023},2022,"BAL","Aktiver",16,15,"Materielle anlægsaktiver","15.4","Indretning af lejede lokaler",{"$f":"ABS('Indtastning balance'!D17)","v":0}]
[{"$f":"Forside!$C$1","v":"Blank"},{"$f":"Forside!$C$4","v":2023},2022,"BAL","Aktiver",16,15,"Materielle anlægsaktiver","15.5","Transportmateriel inkl. skibe",{"$f":"ABS('Indtastning balance'!D18)","v":0}]
[{"$f":"Forside!$C$1","v":"Blank"},{"$f":"Forside!$C$4","v":2023},2022,"BAL","Aktiver",16,15,"Materielle anlægsaktiver","15.6","Produktionsanlæg, maskiner og udstyr",{"$f":"ABS('Indtastning balance'!D19)","v":0}]
[{"$f":"Forside!$C$1","v":"Blank"},{"$f":"Forside!$C$4","v":2023},2022,"BAL","Aktiver",16,15,"Materielle anlægsaktiver","15.7","It-udstyr",{"$f":"ABS('Indtastning balance'!D20)","v":0}]
[{"$f":"Forside!$C$1","v":"Blank"},{"$f":"Forside!$C$4","v":2023},2022,"BAL","Aktiver",16,15,"Materielle anlægsaktiver","15.8","Inventar",{"$f":"ABS('Indtastning balance'!D21)","v":0}]
[{"$f":"Forside!$C$1","v":"Blank"},{"$f":"Forside!$C$4","v":2023},2022,"BAL","Aktiver",17,16,"Finansielle anlægsaktiver","16.1","Aktier/andele i pengeinstitutter",{"$f":"ABS('Indtastning balance'!D24)","v":0}]
[{"$f":"Forside!$C$1","v":"Blank"},{"$f":"Forside!$C$4","v":2023},2022,"BAL","Aktiver",18,16,"Finansielle anlægsaktiver","16.2","Andelsbeviser",{"$f":"ABS('Indtastning balance'!D25)","v":0}]
[{"$f":"Forside!$C$1","v":"Blank"},{"$f":"Forside!$C$4","v":2023},2022,"BAL","Aktiver",19,16,"Finansielle anlægsaktiver","16.3","Kapitalandele i datterselskaber",{"$f":"ABS('Indtastning balance'!D26)","v":0}]
[{"$f":"Forside!$C$1","v":"Blank"},{"$f":"Forside!$C$4","v":2023},2022,"BAL","Aktiver",20,16,"Finansielle anlægsaktiver","16.4","Øvrige kapitalandele",{"$f":"ABS('Indtastning balance'!D27)","v":0}]
[{"$f":"Forside!$C$1","v":"Blank"},{"$f":"Forside!$C$4","v":2023},2022,"BAL","Aktiver",21,16,"Finansielle anlægsaktiver","16.5","Gældsbreve fra staten",{"$f":"ABS('Indtastning balance'!D28)","v":0}]
[{"$f":"Forside!$C$1","v":"Blank"},{"$f":"Forside!$C$4","v":2023},2022,"BAL","Aktiver",22,16,"Finansielle anlægsaktiver","16.6","Lån til dattervirksomheder",{"$f":"ABS('Indtastning balance'!D29)","v":0}]
[{"$f":"Forside!$C$1","v":"Blank"},{"$f":"Forside!$C$4","v":2023},2022,"BAL","Aktiver","31e",16,"Finansielle anlægsaktiver","16.7","Afledte finansielle instrumenter - Aktiver 1",{"$f":"ABS('Indtastning balance'!D30)","v":0}]
[{"$f":"Forside!$C$1","v":"Blank"},{"$f":"Forside!$C$4","v":2023},2022,"BAL","Aktiver",23,16,"Finansielle anlægsaktiver","16.8","Deposita vedr. lejemål",{"$f":"ABS('Indtastning balance'!D31)","v":0}]
[{"$f":"Forside!$C$1","v":"Blank"},{"$f":"Forside!$C$4","v":2023},2022,"BAL","Aktiver",23,16,"Finansielle anlægsaktiver","16.9","Øvrige deposita",{"$f":"ABS('Indtastning balance'!D32)","v":0}]
[{"$f":"Forside!$C$1","v":"Blank"},{"$f":"Forside!$C$4","v":2023},2022,"BAL","Aktiver",null,17,"Varebeholdninger","17.1","Varebeholdninger",{"$f":"ABS('Indtastning balance'!D34)","v":0}]
[{"$f":"Forside!$C$1","v":"Blank"},{"$f":"Forside!$C$4","v":2023},2022,"BAL","Aktiver",23,18,"Tilgodehavender","18.1","Deposita vedr. lejemål",{"$f":"ABS('Indtastning balance'!D36)","v":0}]
[{"$f":"Forside!$C$1","v":"Blank"},{"$f":"Forside!$C$4","v":2023},2022,"BAL","Aktiver",23,18,"Tilgodehavender","18.2","Øvrige deposita",{"$f":"ABS('Indtastning balance'!D37)","v":0}]
[{"$f":"Forside!$C$1","v":"Blank"},{"$f":"Forside!$C$4","v":2023},2022,"BAL","Aktiver",24,18,"Tilgodehavender","18.3","Tilgodehavender fra salg af varer og tjenesteydelser",{"$f":"ABS('Indtastning balance'!D38)","v":0}]
[{"$f":"Forside!$C$1","v":"Blank"},{"$f":"Forside!$C$4","v":2023},2022,"BAL","Aktiver",24,18,"Tilgodehavender","18.4","Tilgodehavender hos dattervirksomheder",{"$f":"ABS('Indtastning balance'!D39)","v":0}]
[{"$f":"Forside!$C$1","v":"Blank"},{"$f":"Forside!$C$4","v":2023},2022,"BAL","Aktiver",24,18,"Tilgodehavender","18.5","Reserveret til tab på tilgodehavender fra salg af varer og ydelser m.v.",{"$f":"ABS('Indtastning balance'!D40)","v":0}]
[{"$f":"Forside!$C$1","v":"Blank"},{"$f":"Forside!$C$4","v":2023},2022,"BAL","Aktiver",25,18,"Tilgodehavender","18.6","Tilgodehavender fra igangværende tilskudsaktivitet",{"$f":"ABS('Indtastning balance'!D41)","v":0}]
[{"$f":"Forside!$C$1","v":"Blank"},{"$f":"Forside!$C$4","v":2023},2022,"BAL","Aktiver",25,18,"Tilgodehavender","18.7","Hensættelse til tab på igangværende tilskudsaktivitet",{"$f":"ABS('Indtastning balance'!D42)","v":0}]
[{"$f":"Forside!$C$1","v":"Blank"},{"$f":"Forside!$C$4","v":2023},2022,"BAL","Aktiver",26,18,"Tilgodehavender","18.8","Andre tilgodehavender",{"$f":"ABS('Indtastning balance'!D43)","v":0}]
[{"$f":"Forside!$C$1","v":"Blank"},{"$f":"Forside!$C$4","v":2023},2022,"BAL","Aktiver",null,18,"Tilgodehavender","18.9","Mellemregning med Uddannelses- og Forskningsministeriet",{"$f":"ABS('Indtastning balance'!D44)","v":0}]
[{"$f":"Forside!$C$1","v":"Blank"},{"$f":"Forside!$C$4","v":2023},2022,"BAL","Aktiver",null,18,"Tilgodehavender","18.10","Mellemregning med Børne- og Undervisningsministeriet",{"$f":"ABS('Indtastning balance'!D45)","v":0}]
[{"$f":"Forside!$C$1","v":"Blank"},{"$f":"Forside!$C$4","v":2023},2022,"BAL","Aktiver",27,18,"Tilgodehavender","18.11","Periodeafgrænsningsposter",{"$f":"ABS('Indtastning balance'!D46)","v":0}]
[{"$f":"Forside!$C$1","v":"Blank"},{"$f":"Forside!$C$4","v":2023},2022,"BAL","Aktiver","31e",18,"Tilgodehavender","18.12","Afledte finansielle instrumenter - Aktiver 2",{"$f":"ABS('Indtastning balance'!D49)","v":0}]
[{"$f":"Forside!$C$1","v":"Blank"},{"$f":"Forside!$C$4","v":2023},2022,"BAL","Aktiver",28,19,"Værdipapirer og likvide beholdninger","19.1","Obligationer",{"$f":"ABS('Indtastning balance'!D50)","v":0}]
[{"$f":"Forside!$C$1","v":"Blank"},{"$f":"Forside!$C$4","v":2023},2022,"BAL","Aktiver",28,19,"Værdipapirer og likvide beholdninger","19.2","Øvrige værdipapirer",{"$f":"ABS('Indtastning balance'!D51)","v":0}]
[{"$f":"Forside!$C$1","v":"Blank"},{"$f":"Forside!$C$4","v":2023},2022,"BAL","Aktiver",null,19,"Værdipapirer og likvide beholdninger","19.3","Likvide beholdninger",{"$f":"ABS('Indtastning balance'!D52)","v":0}]
[{"$f":"Forside!$C$1","v":"Blank"},{"$f":"Forside!$C$4","v":2023},2022,"BAL","Passiver"," ",20,"Egenkapital","20.1","Egenkapital pr. [oprettelsesdato]",{"$f":"ABS('Indtastning balance'!D55)","v":0}]
[{"$f":"Forside!$C$1","v":"Blank"},{"$f":"Forside!$C$4","v":2023},2022,"BAL","Passiver"," ",20,"Egenkapital","20.2","Overført resultat",{"$f":"ABS('Indtastning balance'!D56)","v":0}]
[{"$f":"Forside!$C$1","v":"Blank"},{"$f":"Forside!$C$4","v":2023},2022,"BAL","Passiver"," ",20,"Egenkapital","20.3","Øvrig egenkapital",{"$f":"ABS('Indtastning balance'!D57)","v":0}]
[{"$f":"Forside!$C$1","v":"Blank"},{"$f":"Forside!$C$4","v":2023},2022,"BAL","Passiver",29,21,"Hensatte forpligtelser","21.1","Reetablering af lejemål",{"$f":"ABS('Indtastning balance'!D60)","v":0}]
[{"$f":"Forside!$C$1","v":"Blank"},{"$f":"Forside!$C$4","v":2023},2022,"BAL","Passiver",29,21,"Hensatte forpligtelser","21.2","Lønrelaterede hensatte forpligtelser",{"$f":"ABS('Indtastning balance'!D61)","v":0}]
[{"$f":"Forside!$C$1","v":"Blank"},{"$f":"Forside!$C$4","v":2023},2022,"BAL","Passiver",29,21,"Hensatte forpligtelser","21.3","Andre hensatte forpligtelser",{"$f":"ABS('Indtastning balance'!D62)","v":0}]
[{"$f":"Forside!$C$1","v":"Blank"},{"$f":"Forside!$C$4","v":2023},2022,"BAL","Passiver",30,22,"Langfristede gældsforpligtelser","22.1","Periodiserede donationer",{"$f":"ABS('Indtastning balance'!D65)","v":0}]
[{"$f":"Forside!$C$1","v":"Blank"},{"$f":"Forside!$C$4","v":2023},2022,"BAL","Passiver","31a",22,"Langfristede gældsforpligtelser","22.2","Gæld til staten",{"$f":"ABS('Indtastning balance'!D66)","v":0}]
[{"$f":"Forside!$C$1","v":"Blank"},{"$f":"Forside!$C$4","v":2023},2022,"BAL","Passiver","31b",22,"Langfristede gældsforpligtelser","22.3","Gæld til kommuner",{"$f":"ABS('Indtastning balance'!D67)","v":0}]
[{"$f":"Forside!$C$1","v":"Blank"},{"$f":"Forside!$C$4","v":2023},2022,"BAL","Passiver","31c",22,"Langfristede gældsforpligtelser","22.4","Gæld til realkreditinstitutter",{"$f":"ABS('Indtastning balance'!D68)","v":0}]
[{"$f":"Forside!$C$1","v":"Blank"},{"$f":"Forside!$C$4","v":2023},2022,"BAL","Passiver","31d",22,"Langfristede gældsforpligtelser","22.5","Gæld til banker",{"$f":"ABS('Indtastning balance'!D69)","v":0}]
[{"$f":"Forside!$C$1","v":"Blank"},{"$f":"Forside!$C$4","v":2023},2022,"BAL","Passiver","31e",22,"Langfristede gældsforpligtelser","22.6","Afledte finansielle instrumenter - Passiver 1",{"$f":"ABS('Indtastning balance'!D70)","v":0}]
[{"$f":"Forside!$C$1","v":"Blank"},{"$f":"Forside!$C$4","v":2023},2022,"BAL","Passiver",32,22,"Langfristede gældsforpligtelser","22.7","Gæld vedrørende finansiel leasing",{"$f":"ABS('Indtastning balance'!D71)","v":0}]
[{"$f":"Forside!$C$1","v":"Blank"},{"$f":"Forside!$C$4","v":2023},2022,"BAL","Passiver"," ",22,"Langfristede gældsforpligtelser","22.8","Skyldige indefrosne feriemidler",{"$f":"ABS('Indtastning balance'!D72)","v":0}]
[{"$f":"Forside!$C$1","v":"Blank"},{"$f":"Forside!$C$4","v":2023},2022,"BAL","Passiver",33,22,"Langfristede gældsforpligtelser","22.9","Anden langfristet gæld",{"$f":"ABS('Indtastning balance'!D73)","v":0}]
[{"$f":"Forside!$C$1","v":"Blank"},{"$f":"Forside!$C$4","v":2023},2022,"BAL","Passiver",30,23,"Kortfristede gældsforpligtelser","23.1","Kortfristet del af periodiserede donationer",{"$f":"ABS('Indtastning balance'!D76)","v":0}]
[{"$f":"Forside!$C$1","v":"Blank"},{"$f":"Forside!$C$4","v":2023},2022,"BAL","Passiver",34,23,"Kortfristede gældsforpligtelser","23.2","Kortfristet del af langfristet statsgæld",{"$f":"ABS('Indtastning balance'!D77)","v":0}]
[{"$f":"Forside!$C$1","v":"Blank"},{"$f":"Forside!$C$4","v":2023},2022,"BAL","Passiver",34,23,"Kortfristede gældsforpligtelser","23.3","Kortfristet del af langfristet kommunal gæld",{"$f":"ABS('Indtastning balance'!D78)","v":0}]
[{"$f":"Forside!$C$1","v":"Blank"},{"$f":"Forside!$C$4","v":2023},2022,"BAL","Passiver",34,23,"Kortfristede gældsforpligtelser","23.4","Kortfristet del af gæld til banker og realkreditinstitutter",{"$f":"ABS('Indtastning balance'!D79)","v":0}]
[{"$f":"Forside!$C$1","v":"Blank"},{"$f":"Forside!$C$4","v":2023},2022,"BAL","Passiver",35,23,"Kortfristede gældsforpligtelser","23.5","Korte banklån",{"$f":"ABS('Indtastning balance'!D80)","v":0}]
[{"$f":"Forside!$C$1","v":"Blank"},{"$f":"Forside!$C$4","v":2023},2022,"BAL","Passiver",35,23,"Kortfristede gældsforpligtelser","23.6","Korte driftskreditter",{"$f":"ABS('Indtastning balance'!D81)","v":0}]
[{"$f":"Forside!$C$1","v":"Blank"},{"$f":"Forside!$C$4","v":2023},2022,"BAL","Passiver",35,23,"Kortfristede gældsforpligtelser","23.7","Træk på kassekredit",{"$f":"ABS('Indtastning balance'!D82)","v":0}]
[{"$f":"Forside!$C$1","v":"Blank"},{"$f":"Forside!$C$4","v":2023},2022,"BAL","Passiver","31e",23,"Kortfristede gældsforpligtelser","23.8","Afledte finansielle instrumenter - Passiver 2",{"$f":"ABS('Indtastning balance'!D83)","v":0}]
[{"$f":"Forside!$C$1","v":"Blank"},{"$f":"Forside!$C$4","v":2023},2022,"BAL","Passiver",null,23,"Kortfristede gældsforpligtelser","23.9","Skyldig løn",{"$f":"ABS('Indtastning balance'!D84)","v":0}]
[{"$f":"Forside!$C$1","v":"Blank"},{"$f":"Forside!$C$4","v":2023},2022,"BAL","Passiver",null,23,"Kortfristede gældsforpligtelser","23.10","Feriepengeforpligtelse",{"$f":"ABS('Indtastning balance'!D85)","v":0}]
[{"$f":"Forside!$C$1","v":"Blank"},{"$f":"Forside!$C$4","v":2023},2022,"BAL","Passiver",null,23,"Kortfristede gældsforpligtelser","23.11","Skyldige indefrosne feriemidler",{"$f":"ABS('Indtastning balance'!D86)","v":0}]
[{"$f":"Forside!$C$1","v":"Blank"},{"$f":"Forside!$C$4","v":2023},2022,"BAL","Passiver",null,23,"Kortfristede gældsforpligtelser","23.12","Forudbetalte bundne tilskud",{"$f":"ABS('Indtastning balance'!D87)","v":0}]
[{"$f":"Forside!$C$1","v":"Blank"},{"$f":"Forside!$C$4","v":2023},2022,"BAL","Passiver",null,23,"Kortfristede gældsforpligtelser","23.13","Mellemregning med Uddannelses- og Forskningsministeriet",{"$f":"ABS('Indtastning balance'!D88)","v":0}]
[{"$f":"Forside!$C$1","v":"Blank"},{"$f":"Forside!$C$4","v":2023},{"$f":"B247-1","v":2022},"BAL","Passiver",null,23,"Kortfristede gældsforpligtelser","23.14","Mellemregning med Børne- og Undervisningsministeriet",{"$f":"ABS('Indtastning balance'!D89)","v":0}]
[{"$f":"Forside!$C$1","v":"Blank"},{"$f":"Forside!$C$4","v":2023},2022,"BAL","Passiver",null,23,"Kortfristede gældsforpligtelser","23.15","Mellemregning med Skoleskibet DANMARK",{"$f":"ABS('Indtastning balance'!D90)","v":0}]
[{"$f":"Forside!$C$1","v":"Blank"},{"$f":"Forside!$C$4","v":2023},2022,"BAL","Passiver",36,23,"Kortfristede gældsforpligtelser","23.16","Forudbetalt tilskud for det kommende regnskabsår fra Uddannelses- og Forskningsministeriet",{"$f":"ABS('Indtastning balance'!D91)","v":0}]
[{"$f":"Forside!$C$1","v":"Blank"},{"$f":"Forside!$C$4","v":2023},2022,"BAL","Passiver",36,23,"Kortfristede gældsforpligtelser","23.17","Forudbetalt tilskud for det kommende regnskabsår fra Børne- og Undervisningsministeriet",{"$f":"ABS('Indtastning balance'!D92)","v":0}]
[{"$f":"Forside!$C$1","v":"Blank"},{"$f":"Forside!$C$4","v":2023},2022,"BAL","Passiver",36,23,"Kortfristede gældsforpligtelser","23.18","Periodiserede særtilskud fra Uddannelses- og Forskningsministeriet",{"$f":"ABS('Indtastning balance'!D93)","v":0}]
[{"$f":"Forside!$C$1","v":"Blank"},{"$f":"Forside!$C$4","v":2023},{"$f":"B252","v":2023},"BAL","Passiver",36,23,"Kortfristede gældsforpligtelser","23.19","Øvrige periodeafgrænsningsposter [evt. specifikation, f.eks. forudbetalt deltagerbetaling]",{"$f":"ABS('Indtastning balance'!D94)","v":0}]
[{"$f":"Forside!$C$1","v":"Blank"},{"$f":"Forside!$C$4","v":2023},2022,"BAL","Passiver",37,23,"Kortfristede gældsforpligtelser","23.20","Gæld til leverandører af varer og tjenesteydelser",{"$f":"ABS('Indtastning balance'!D95)","v":0}]
[{"$f":"Forside!$C$1","v":"Blank"},{"$f":"Forside!$C$4","v":2023},2022,"BAL","Passiver",37,23,"Kortfristede gældsforpligtelser","23.21","Gæld til dattervirksomheder",{"$f":"ABS('Indtastning balance'!D96)","v":0}]
[{"$f":"Forside!$C$1","v":"Blank"},{"$f":"Forside!$C$4","v":2023},2022,"BAL","Passiver",38,23,"Kortfristede gældsforpligtelser","23.22","Anden kortfristet gæld",{"$f":"ABS('Indtastning balance'!D97)","v":0}]

{"sheet":"Stamdata","index":11,"n_rows":42,"n_cols":11,"rows_kept":42,"cut":false,"hidden":false,"merged":[]}
["Institutionstype",null,"Institutionsnr.","Institutionsnavn",null,"Forrentning","Valuta","Instrumenttype","Lånetype","Afdragsfrihed","Afdragsfrihed udløb"]
["UNI",null,"Blank","Intet institutionsnavn",null,"Fast forrentet","DKK","Derivater","Annuitetslån","Ja",2021]
["PH",null,"101408","Maskinmesterskolen København",null,"Variabel","EUR","Realkredit gæld","Byggekredit","Nej",2022]
["EA",null,"101429","Skoleskibet Georg Stage",null,"N/A",null,"Kommunal gæld","Kontantlån",null,2023]
["MAR",null,"101430","Skoleskibet 'Danmark'",null,null,null,"Regional gæld","Obligationslån",null,2024]
[null,null,"101530","IT-Universitetet i København",null,null,null,"Statsgæld","Prioritetslån",null,2025]
[null,null,"101582","Københavns Universitet",null,null,null,null,"Rentetilpasningslån",null,2026]
[null,null,"101604","Københavns Erhvervsakademi (KEA)",null,null,null,null,"Statslån",null,2027]
[null,null,"101605","Erhvervsakademiet Copenhagen Business Academy",null,null,null,null,"Andet",null,2028]
[null,null,"147406","Copenhagen Business School - Handelshøjskolen",null,null,null,null,"Renteloft",null,2029]
[null,null,"173405","Danmarks Tekniske Universitet",null,null,null,null,"Renteswap",null,2030]
[null,null,"219417","Københavns Professionshøjskole",null,null,null,null,"Andet",null,2031]
[null,null,"259404","Zealand Sjællands Erhvervsakademi",null,null,null,null,null,null,2032]
[null,null,"265407","Roskilde Universitet",null,null,null,null,null,null,2033]
[null,null,"280299","Det Kongelige Akademi - Arkitektur, Design, Konservering",null,null,null,null,null,null,2034]
[null,null,"280938","MARTEC - Maritime and Polytechnic University College",null,null,null,null,null,null,2035]
[null,null,"340401","Professionshøjskolen Absalon",null,null,null,null,null,null,2036]
[null,null,"427402","Den Frie Lærerskole",null,null,null,null,null,null,2037]
[null,null,"443401","Marstal Navigationsskole",null,null,null,null,null,null,2038]
[null,null,"461437","Syddansk Universitet",null,null,null,null,null,null,2039]
[null,null,"479403","Svendborg Søfartsskole",null,null,null,null,null,null,2040]
[null,null,"479412","Svendborg International Maritime Academy, SIMAC",null,null,null,null,null,null,2041]
[null,null,"561423","Professionshøjskolen UC Syddanmark",null,null,null,null,null,null,2042]
[null,null,"561427","Erhvervsakademi SydVest",null,null,null,null,null,null,2043]
[null,null,"607403","Fredericia Maskinmesterskole",null,null,null,null,null,null,2044]
[null,null,"621408","Designskolen Kolding",null,null,null,null,null,null,2045]
[null,null,"621413","IBA Erhvervsakademi Kolding",null,null,null,null,null,null,2046]
[null,null,"630401","UCL Erhvervsakademi og Professionshøjskole",null,null,null,null,null,null,2047]
[null,null,"657418","Erhvervsakademi MidtVest",null,null,null,null,null,null,2048]
[null,null,"730401","Erhvervsakademi Dania",null,null,null,null,null,null,2049]
[null,null,"751405","Aarhus Maskinmesterskole",null,null,null,null,null,null,2050]
[null,null,"751426","Arkitektskolen Aarhus",null,null,null,null,null,null,2051]
[null,null,"751465","Aarhus Universitet",null,null,null,null,null,null,2052]
[null,null,"751468","Danmarks Medie- og Journalisthøjskole",null,null,null,null,null,null,2053]
[null,null,"751470","Erhvervsakademi Aarhus",null,null,null,null,null,null,2054]
[null,null,"791413","Professionshøjskolen VIA University College",null,null,null,null,null,null,2055]
[null,null,"851446","Aalborg Universitet",null,null,null,null,null,null,2056]
[null,null,"851454","Professionshøjskolen University College Nordjylland",null,null,null,null,null,null,2057]
[null,null,null,null,null,null,null,null,null,null,2058]
[null,null,null,null,null,null,null,null,null,null,2059]
[null,null,null,null,null,null,null,null,null,null,2060]
[null,null,null,null,null,null,null,null,null,null,2999]